Publisher Label,Publisher URI,"Supplier ID","Supplier","Invoice No.","Amount £","Purpose","Transaction Number","Payment Date","Organisational Unit","Cost Centre(T)","Internal Category Number"
"Wolverhampton City Council","http://opendatacommunities.org/id/metropolitan-district-council/wolverhampton","706697","Radis Community Care","0605201820180514","50.82","TPP - Home Care","190457638","16/05/2018","Older People Care Purchasing","OP Care Purchasing (Spot Placements)","R5420"
"Wolverhampton City Council","http://opendatacommunities.org/id/metropolitan-district-council/wolverhampton","706697","Radis Community Care","0605201820180514","127.05","TPP - Home Care","190457638","16/05/2018","Older People Care Purchasing","OP Care Purchasing (Spot Placements)","R5420"
"Wolverhampton City Council","http://opendatacommunities.org/id/metropolitan-district-council/wolverhampton","706697","Radis Community Care","0605201820180514","50.82","TPP - Home Care","190457638","16/05/2018","Physical Disabilities Care Purchasing","PD Care Purchasing (Spot Placements)","R5420"
"Wolverhampton City Council","http://opendatacommunities.org/id/metropolitan-district-council/wolverhampton","706697","Radis Community Care","0605201820180514","50.82","TPP - Home Care","190457638","16/05/2018","Physical Disabilities Care Purchasing","PD Care Purchasing (Spot Placements)","R5420"
"Wolverhampton City Council","http://opendatacommunities.org/id/metropolitan-district-council/wolverhampton","706697","Radis Community Care","0605201820180514","105.27","TPP - Home Care","190457638","16/05/2018","Older People Care Purchasing","OP Care Purchasing (Spot Placements)","R5420"
"Wolverhampton City Council","http://opendatacommunities.org/id/metropolitan-district-council/wolverhampton","706697","Radis Community Care","0605201820180514","36.30","TPP - Home Care","190457638","16/05/2018","Older People Care Purchasing","OP Care Purchasing (Spot Placements)","R5420"
"Wolverhampton City Council","http://opendatacommunities.org/id/metropolitan-district-council/wolverhampton","706697","Radis Community Care","0605201820180514","479.16","TPP - Home Care","190457638","16/05/2018","Physical Disabilities Care Purchasing","PD Care Purchasing (Spot Placements)","R5420"
"Wolverhampton City Council","http://opendatacommunities.org/id/metropolitan-district-council/wolverhampton","706697","Radis Community Care","0605201820180514","497.31","TPP - Home Care","190457638","16/05/2018","Physical Disabilities Care Purchasing","PD Care Purchasing (Spot Placements)","R5420"
"Wolverhampton City Council","http://opendatacommunities.org/id/metropolitan-district-council/wolverhampton","706697","Radis Community Care","0605201820180514","76.23","TPP - Home Care","190457638","16/05/2018","Learning Disabilities Care Purchasing","LD Care Purchasing (Spot Placements)","R5420"
"Wolverhampton City Council","http://opendatacommunities.org/id/metropolitan-district-council/wolverhampton","706697","Radis Community Care","0605201820180514","76.23","TPP - Home Care","190457638","16/05/2018","Physical Disabilities Care Purchasing","PD Care Purchasing (Spot Placements)","R5420"
"Wolverhampton City Council","http://opendatacommunities.org/id/metropolitan-district-council/wolverhampton","706697","Radis Community Care","0605201820180514","76.23","TPP - Home Care","190457638","16/05/2018","Physical Disabilities Care Purchasing","PD Care Purchasing (Spot Placements)","R5420"
"Wolverhampton City Council","http://opendatacommunities.org/id/metropolitan-district-council/wolverhampton","706697","Radis Community Care","0605201820180514","32.67","TPP - Home Care","190457638","16/05/2018","Physical Disabilities Care Purchasing","PD Care Purchasing (Spot Placements)","R5420"
"Wolverhampton City Council","http://opendatacommunities.org/id/metropolitan-district-council/wolverhampton","706697","Radis Community Care","0605201820180514","127.05","TPP - Home Care","190457638","16/05/2018","Older People Care Purchasing","OP Care Purchasing (Spot Placements)","R5420"
"Wolverhampton City Council","http://opendatacommunities.org/id/metropolitan-district-council/wolverhampton","706697","Radis Community Care","0605201820180514","228.69","TPP - Home Care","190457638","16/05/2018","Older People Care Purchasing","OP Care Purchasing (Spot Placements)","R5420"
"Wolverhampton City Council","http://opendatacommunities.org/id/metropolitan-district-council/wolverhampton","706697","Radis Community Care","0605201820180514","228.69","TPP - Home Care","190457638","16/05/2018","Older People Care Purchasing","OP Care Purchasing (Spot Placements)","R5420"
"Wolverhampton City Council","http://opendatacommunities.org/id/metropolitan-district-council/wolverhampton","706697","Radis Community Care","0605201820180514","228.69","TPP - Home Care","190457638","16/05/2018","Older People Care Purchasing","OP Care Purchasing (Spot Placements)","R5420"
"Wolverhampton City Council","http://opendatacommunities.org/id/metropolitan-district-council/wolverhampton","706697","Radis Community Care","0605201820180514","148.83","TPP - Home Care","190457638","16/05/2018","Older People Care Purchasing","OP Care Purchasing (Spot Placements)","R5420"
"Wolverhampton City Council","http://opendatacommunities.org/id/metropolitan-district-council/wolverhampton","706697","Radis Community Care","0605201820180514","98.01","TPP - Home Care","190457638","16/05/2018","Older People Care Purchasing","OP Care Purchasing (Spot Placements)","R5420"
"Wolverhampton City Council","http://opendatacommunities.org/id/metropolitan-district-council/wolverhampton","706697","Radis Community Care","0605201820180514","43.56","TPP - Home Care","190457638","16/05/2018","Older People Care Purchasing","OP Care Purchasing (Spot Placements)","R5420"
"Wolverhampton City Council","http://opendatacommunities.org/id/metropolitan-district-council/wolverhampton","706697","Radis Community Care","0605201820180514","156.09","TPP - Home Care","190457638","16/05/2018","Older People Care Purchasing","OP Care Purchasing (Spot Placements)","R5420"
"Wolverhampton City Council","http://opendatacommunities.org/id/metropolitan-district-council/wolverhampton","706697","Radis Community Care","0605201820180514","152.46","TPP - Home Care","190457638","16/05/2018","Older People Care Purchasing","OP Care Purchasing (Spot Placements)","R5420"
"Wolverhampton City Council","http://opendatacommunities.org/id/metropolitan-district-council/wolverhampton","706697","Radis Community Care","0605201820180514","148.83","TPP - Home Care","190457638","16/05/2018","Older People Care Purchasing","OP Care Purchasing (Spot Placements)","R5420"
"Wolverhampton City Council","http://opendatacommunities.org/id/metropolitan-district-council/wolverhampton","706697","Radis Community Care","0605201820180514","141.57","TPP - Home Care","190457638","16/05/2018","Older People Care Purchasing","OP Care Purchasing (Spot Placements)","R5420"
"Wolverhampton City Council","http://opendatacommunities.org/id/metropolitan-district-council/wolverhampton","706697","Radis Community Care","0605201820180514","217.80","TPP - Home Care","190457638","16/05/2018","Older People Care Purchasing","OP Care Purchasing (Spot Placements)","R5420"
"Wolverhampton City Council","http://opendatacommunities.org/id/metropolitan-district-council/wolverhampton","706697","Radis Community Care","0605201820180514","68.97","TPP - Home Care","190457638","16/05/2018","Physical Disabilities Care Purchasing","PD Care Purchasing (Spot Placements)","R5420"
"Wolverhampton City Council","http://opendatacommunities.org/id/metropolitan-district-council/wolverhampton","706697","Radis Community Care","0605201820180514","72.60","TPP - Home Care","190457638","16/05/2018","Older People Care Purchasing","OP Care Purchasing (Spot Placements)","R5420"
"Wolverhampton City Council","http://opendatacommunities.org/id/metropolitan-district-council/wolverhampton","706697","Radis Community Care","0605201820180514","105.27","TPP - Home Care","190457638","16/05/2018","Older People Care Purchasing","OP Care Purchasing (Spot Placements)","R5420"
"Wolverhampton City Council","http://opendatacommunities.org/id/metropolitan-district-council/wolverhampton","706697","Radis Community Care","0605201820180514","101.64","TPP - Home Care","190457638","16/05/2018","Older People Care Purchasing","OP Care Purchasing (Spot Placements)","R5420"
"Wolverhampton City Council","http://opendatacommunities.org/id/metropolitan-district-council/wolverhampton","706697","Radis Community Care","0605201820180514","36.30","TPP - Home Care","190457638","16/05/2018","Older People Care Purchasing","OP Care Purchasing (Spot Placements)","R5420"
"Wolverhampton City Council","http://opendatacommunities.org/id/metropolitan-district-council/wolverhampton","706697","Radis Community Care","0605201820180514","36.30","TPP - Home Care","190457638","16/05/2018","Older People Care Purchasing","OP Care Purchasing (Spot Placements)","R5420"
"Wolverhampton City Council","http://opendatacommunities.org/id/metropolitan-district-council/wolverhampton","706697","Radis Community Care","0605201820180514","101.64","TPP - Home Care","190457638","16/05/2018","Older People Care Purchasing","OP Care Purchasing (Spot Placements)","R5420"
"Wolverhampton City Council","http://opendatacommunities.org/id/metropolitan-district-council/wolverhampton","706697","Radis Community Care","0605201820180514","264.99","TPP - Home Care","190457638","16/05/2018","Physical Disabilities Care Purchasing","PD Care Purchasing (Spot Placements)","R5420"
"Wolverhampton City Council","http://opendatacommunities.org/id/metropolitan-district-council/wolverhampton","706697","Radis Community Care","0605201820180514","297.66","TPP - Home Care","190457638","16/05/2018","Physical Disabilities Care Purchasing","PD Care Purchasing (Spot Placements)","R5420"
"Wolverhampton City Council","http://opendatacommunities.org/id/metropolitan-district-council/wolverhampton","706697","Radis Community Care","0605201820180514","108.90","TPP - Home Care","190457638","16/05/2018","Older People Care Purchasing","OP Care Purchasing (Spot Placements)","R5420"
"Wolverhampton City Council","http://opendatacommunities.org/id/metropolitan-district-council/wolverhampton","706697","Radis Community Care","0605201820180514","101.64","TPP - Home Care","190457638","16/05/2018","Older People Care Purchasing","OP Care Purchasing (Spot Placements)","R5420"
"Wolverhampton City Council","http://opendatacommunities.org/id/metropolitan-district-council/wolverhampton","706697","Radis Community Care","0605201820180514","166.98","TPP - Home Care","190457638","16/05/2018","Older People Care Purchasing","OP Care Purchasing (Spot Placements)","R5420"
"Wolverhampton City Council","http://opendatacommunities.org/id/metropolitan-district-council/wolverhampton","706697","Radis Community Care","0605201820180514","145.20","TPP - Home Care","190457638","16/05/2018","Older People Care Purchasing","OP Care Purchasing (Spot Placements)","R5420"
"Wolverhampton City Council","http://opendatacommunities.org/id/metropolitan-district-council/wolverhampton","706697","Radis Community Care","0605201820180514","50.82","TPP - Home Care","190457638","16/05/2018","Older People Care Purchasing","OP Care Purchasing (Spot Placements)","R5420"
"Wolverhampton City Council","http://opendatacommunities.org/id/metropolitan-district-council/wolverhampton","706697","Radis Community Care","0605201820180514","123.42","TPP - Home Care","190457638","16/05/2018","Older People Care Purchasing","OP Care Purchasing (Spot Placements)","R5420"
"Wolverhampton City Council","http://opendatacommunities.org/id/metropolitan-district-council/wolverhampton","706697","Radis Community Care","0605201820180514","127.05","TPP - Home Care","190457638","16/05/2018","Older People Care Purchasing","OP Care Purchasing (Spot Placements)","R5420"
"Wolverhampton City Council","http://opendatacommunities.org/id/metropolitan-district-council/wolverhampton","706697","Radis Community Care","0605201820180514","61.71","TPP - Home Care","190457638","16/05/2018","Physical Disabilities Care Purchasing","PD Care Purchasing (Spot Placements)","R5420"
"Wolverhampton City Council","http://opendatacommunities.org/id/metropolitan-district-council/wolverhampton","706697","Radis Community Care","0605201820180514","206.91","TPP - Home Care","190457638","16/05/2018","Older People Care Purchasing","OP Care Purchasing (Spot Placements)","R5420"
"Wolverhampton City Council","http://opendatacommunities.org/id/metropolitan-district-council/wolverhampton","706697","Radis Community Care","0605201820180514","94.38","TPP - Home Care","190457638","16/05/2018","Older People Care Purchasing","OP Care Purchasing (Spot Placements)","R5420"
"Wolverhampton City Council","http://opendatacommunities.org/id/metropolitan-district-council/wolverhampton","706697","Radis Community Care","0605201820180514","196.02","TPP - Home Care","190457638","16/05/2018","Older People Care Purchasing","OP Care Purchasing (Spot Placements)","R5420"
"Wolverhampton City Council","http://opendatacommunities.org/id/metropolitan-district-council/wolverhampton","706697","Radis Community Care","0605201820180514","199.65","TPP - Home Care","190457638","16/05/2018","Older People Care Purchasing","OP Care Purchasing (Spot Placements)","R5420"
"Wolverhampton City Council","http://opendatacommunities.org/id/metropolitan-district-council/wolverhampton","706697","Radis Community Care","0605201820180514","156.09","TPP - Home Care","190457638","16/05/2018","Physical Disabilities Care Purchasing","PD Care Purchasing (Spot Placements)","R5420"
"Wolverhampton City Council","http://opendatacommunities.org/id/metropolitan-district-council/wolverhampton","706697","Radis Community Care","0605201820180514","145.20","TPP - Home Care","190457638","16/05/2018","Physical Disabilities Care Purchasing","PD Care Purchasing (Spot Placements)","R5420"
"Wolverhampton City Council","http://opendatacommunities.org/id/metropolitan-district-council/wolverhampton","706697","Radis Community Care","0605201820180514","50.82","TPP - Home Care","190457638","16/05/2018","Older People Care Purchasing","OP Care Purchasing (Spot Placements)","R5420"
"Wolverhampton City Council","http://opendatacommunities.org/id/metropolitan-district-council/wolverhampton","706697","Radis Community Care","0605201820180514","206.91","TPP - Home Care","190457638","16/05/2018","Physical Disabilities Care Purchasing","PD Care Purchasing (Spot Placements)","R5420"
"Wolverhampton City Council","http://opendatacommunities.org/id/metropolitan-district-council/wolverhampton","706697","Radis Community Care","0605201820180514","170.61","TPP - Home Care","190457638","16/05/2018","Physical Disabilities Care Purchasing","PD Care Purchasing (Spot Placements)","R5420"
"Wolverhampton City Council","http://opendatacommunities.org/id/metropolitan-district-council/wolverhampton","706697","Radis Community Care","0605201820180514","87.12","TPP - Home Care","190457638","16/05/2018","Mental Health Assesment & Care Management","MH Care Purchasing (Spot Placements)","R5420"
"Wolverhampton City Council","http://opendatacommunities.org/id/metropolitan-district-council/wolverhampton","706697","Radis Community Care","0605201820180514","50.82","TPP - Home Care","190457638","16/05/2018","Older People Care Purchasing","OP Care Purchasing (Spot Placements)","R5420"
"Wolverhampton City Council","http://opendatacommunities.org/id/metropolitan-district-council/wolverhampton","706697","Radis Community Care","0605201820180514","50.82","TPP - Home Care","190457638","16/05/2018","Older People Care Purchasing","OP Care Purchasing (Spot Placements)","R5420"
"Wolverhampton City Council","http://opendatacommunities.org/id/metropolitan-district-council/wolverhampton","706697","Radis Community Care","0605201820180514","177.87","TPP - Home Care","190457638","16/05/2018","Older People Care Purchasing","OP Care Purchasing (Spot Placements)","R5420"
"Wolverhampton City Council","http://opendatacommunities.org/id/metropolitan-district-council/wolverhampton","706697","Radis Community Care","0605201820180514","87.12","TPP - Home Care","190457638","16/05/2018","Older People Care Purchasing","OP Care Purchasing (Spot Placements)","R5420"
"Wolverhampton City Council","http://opendatacommunities.org/id/metropolitan-district-council/wolverhampton","706697","Radis Community Care","0605201820180514","25.41","TPP - Home Care","190457638","16/05/2018","Older People Care Purchasing","OP Care Purchasing (Spot Placements)","R5420"
"Wolverhampton City Council","http://opendatacommunities.org/id/metropolitan-district-council/wolverhampton","706697","Radis Community Care","0605201820180514","87.12","TPP - Home Care","190457638","16/05/2018","Older People Care Purchasing","OP Care Purchasing (Spot Placements)","R5420"
"Wolverhampton City Council","http://opendatacommunities.org/id/metropolitan-district-council/wolverhampton","706697","Radis Community Care","0605201820180514","32.67","TPP - Home Care","190457638","16/05/2018","Older People Care Purchasing","OP Care Purchasing (Spot Placements)","R5420"
"Wolverhampton City Council","http://opendatacommunities.org/id/metropolitan-district-council/wolverhampton","706697","Radis Community Care","0605201820180514","203.28","TPP - Home Care","190457638","16/05/2018","Older People Care Purchasing","OP Care Purchasing (Spot Placements)","R5420"
"Wolverhampton City Council","http://opendatacommunities.org/id/metropolitan-district-council/wolverhampton","706697","Radis Community Care","0605201820180514","141.57","TPP - Home Care","190457638","16/05/2018","Older People Care Purchasing","OP Care Purchasing (Spot Placements)","R5420"
"Wolverhampton City Council","http://opendatacommunities.org/id/metropolitan-district-council/wolverhampton","706697","Radis Community Care","0605201820180514","152.46","TPP - Home Care","190457638","16/05/2018","Older People Care Purchasing","OP Care Purchasing (Spot Placements)","R5420"
"Wolverhampton City Council","http://opendatacommunities.org/id/metropolitan-district-council/wolverhampton","706697","Radis Community Care","0605201820180514","50.82","TPP - Home Care","190457638","16/05/2018","Older People Care Purchasing","OP Care Purchasing (Spot Placements)","R5420"
"Wolverhampton City Council","http://opendatacommunities.org/id/metropolitan-district-council/wolverhampton","706697","Radis Community Care","0605201820180514","50.82","TPP - Home Care","190457638","16/05/2018","Older People Care Purchasing","OP Care Purchasing (Spot Placements)","R5420"
"Wolverhampton City Council","http://opendatacommunities.org/id/metropolitan-district-council/wolverhampton","706697","Radis Community Care","0605201820180514","54.45","TPP - Home Care","190457638","16/05/2018","Older People Care Purchasing","OP Care Purchasing (Spot Placements)","R5420"
"Wolverhampton City Council","http://opendatacommunities.org/id/metropolitan-district-council/wolverhampton","706697","Radis Community Care","0605201820180514","50.82","TPP - Home Care","190457638","16/05/2018","Older People Care Purchasing","OP Care Purchasing (Spot Placements)","R5420"
"Wolverhampton City Council","http://opendatacommunities.org/id/metropolitan-district-council/wolverhampton","706697","Radis Community Care","0605201820180514","47.19","TPP - Home Care","190457638","16/05/2018","Older People Care Purchasing","OP Care Purchasing (Spot Placements)","R5420"
"Wolverhampton City Council","http://opendatacommunities.org/id/metropolitan-district-council/wolverhampton","706697","Radis Community Care","0605201820180514","41.40","TPP - Carer Support Service","190457638","16/05/2018","Carer Support","CS Care Purchasing (Spot Placements)","R5421"
"Wolverhampton City Council","http://opendatacommunities.org/id/metropolitan-district-council/wolverhampton","706697","Radis Community Care","0605201820180514","225.06","TPP - Home Care","190457638","16/05/2018","Older People Care Purchasing","OP Care Purchasing (Spot Placements)","R5420"
"Wolverhampton City Council","http://opendatacommunities.org/id/metropolitan-district-council/wolverhampton","706697","Radis Community Care","0605201820180514","246.84","TPP - Home Care","190457638","16/05/2018","Older People Care Purchasing","OP Care Purchasing (Spot Placements)","R5420"
"Wolverhampton City Council","http://opendatacommunities.org/id/metropolitan-district-council/wolverhampton","706697","Radis Community Care","0605201820180514","94.38","TPP - Home Care","190457638","16/05/2018","Older People Care Purchasing","OP Care Purchasing (Spot Placements)","R5420"
"Wolverhampton City Council","http://opendatacommunities.org/id/metropolitan-district-council/wolverhampton","706697","Radis Community Care","0605201820180514","148.83","TPP - Home Care","190457638","16/05/2018","Older People Care Purchasing","OP Care Purchasing (Spot Placements)","R5420"
"Wolverhampton City Council","http://opendatacommunities.org/id/metropolitan-district-council/wolverhampton","706697","Radis Community Care","0605201820180514","94.38","TPP - Home Care","190457638","16/05/2018","Older People Care Purchasing","OP Care Purchasing (Spot Placements)","R5420"
"Wolverhampton City Council","http://opendatacommunities.org/id/metropolitan-district-council/wolverhampton","706697","Radis Community Care","0605201820180514","166.98","TPP - Home Care","190457638","16/05/2018","Older People Care Purchasing","OP Care Purchasing (Spot Placements)","R5420"
"Wolverhampton City Council","http://opendatacommunities.org/id/metropolitan-district-council/wolverhampton","706697","Radis Community Care","0605201820180514","159.72","TPP - Home Care","190457638","16/05/2018","Older People Care Purchasing","OP Care Purchasing (Spot Placements)","R5420"
"Wolverhampton City Council","http://opendatacommunities.org/id/metropolitan-district-council/wolverhampton","706697","Radis Community Care","0605201820180514","98.01","TPP - Home Care","190457638","16/05/2018","Older People Care Purchasing","OP Care Purchasing (Spot Placements)","R5420"
"Wolverhampton City Council","http://opendatacommunities.org/id/metropolitan-district-council/wolverhampton","706697","Radis Community Care","0605201820180514","27.60","TPP - Carer Support Service","190457638","16/05/2018","Carer Support","CS Care Purchasing (Spot Placements)","R5421"
"Wolverhampton City Council","http://opendatacommunities.org/id/metropolitan-district-council/wolverhampton","706697","Radis Community Care","0605201820180514","217.80","TPP - Home Care","190457638","16/05/2018","Older People Care Purchasing","OP Care Purchasing (Spot Placements)","R5420"
"Wolverhampton City Council","http://opendatacommunities.org/id/metropolitan-district-council/wolverhampton","706697","Radis Community Care","0605201820180514","72.60","TPP - Home Care","190457638","16/05/2018","Physical Disabilities Care Purchasing","PD Care Purchasing (Spot Placements)","R5420"
"Wolverhampton City Council","http://opendatacommunities.org/id/metropolitan-district-council/wolverhampton","706697","Radis Community Care","0605201820180514","105.27","TPP - Home Care","190457638","16/05/2018","Mental Health Assesment & Care Management","MH Care Purchasing (Spot Placements)","R5420"
"Wolverhampton City Council","http://opendatacommunities.org/id/metropolitan-district-council/wolverhampton","706697","Radis Community Care","0605201820180514","192.39","TPP - Home Care","190457638","16/05/2018","Older People Care Purchasing","OP Care Purchasing (Spot Placements)","R5420"
"Wolverhampton City Council","http://opendatacommunities.org/id/metropolitan-district-council/wolverhampton","706697","Radis Community Care","0605201820180514","185.13","TPP - Home Care","190457638","16/05/2018","Older People Care Purchasing","OP Care Purchasing (Spot Placements)","R5420"
"Wolverhampton City Council","http://opendatacommunities.org/id/metropolitan-district-council/wolverhampton","706697","Radis Community Care","0605201820180514","192.39","TPP - Home Care","190457638","16/05/2018","Older People Care Purchasing","OP Care Purchasing (Spot Placements)","R5420"
"Wolverhampton City Council","http://opendatacommunities.org/id/metropolitan-district-council/wolverhampton","706697","Radis Community Care","0605201820180514","41.40","TPP - Carer Support Service","190457638","16/05/2018","Carer Support","CS Care Purchasing (Spot Placements)","R5421"
"Wolverhampton City Council","http://opendatacommunities.org/id/metropolitan-district-council/wolverhampton","706697","Radis Community Care","0605201820180514","203.28","TPP - Home Care","190457638","16/05/2018","Older People Care Purchasing","OP Care Purchasing (Spot Placements)","R5420"
"Wolverhampton City Council","http://opendatacommunities.org/id/metropolitan-district-council/wolverhampton","706697","Radis Community Care","0605201820180514","210.54","TPP - Home Care","190457638","16/05/2018","Older People Care Purchasing","OP Care Purchasing (Spot Placements)","R5420"
"Wolverhampton City Council","http://opendatacommunities.org/id/metropolitan-district-council/wolverhampton","706697","Radis Community Care","0605201820180514","210.54","TPP - Home Care","190457638","16/05/2018","Older People Care Purchasing","OP Care Purchasing (Spot Placements)","R5420"
"Wolverhampton City Council","http://opendatacommunities.org/id/metropolitan-district-council/wolverhampton","706697","Radis Community Care","0605201820180514","177.87","TPP - Home Care","190457638","16/05/2018","Older People Care Purchasing","OP Care Purchasing (Spot Placements)","R5420"
"Wolverhampton City Council","http://opendatacommunities.org/id/metropolitan-district-council/wolverhampton","706697","Radis Community Care","0605201820180514","199.65","TPP - Home Care","190457638","16/05/2018","Older People Care Purchasing","OP Care Purchasing (Spot Placements)","R5420"
"Wolverhampton City Council","http://opendatacommunities.org/id/metropolitan-district-council/wolverhampton","706697","Radis Community Care","0605201820180514","196.02","TPP - Home Care","190457638","16/05/2018","Older People Care Purchasing","OP Care Purchasing (Spot Placements)","R5420"
"Wolverhampton City Council","http://opendatacommunities.org/id/metropolitan-district-council/wolverhampton","706697","Radis Community Care","0605201820180514","101.64","TPP - Home Care","190457638","16/05/2018","Older People Care Purchasing","OP Care Purchasing (Spot Placements)","R5420"
"Wolverhampton City Council","http://opendatacommunities.org/id/metropolitan-district-council/wolverhampton","706697","Radis Community Care","0605201820180514","148.83","TPP - Home Care","190457638","16/05/2018","Older People Care Purchasing","OP Care Purchasing (Spot Placements)","R5420"
"Wolverhampton City Council","http://opendatacommunities.org/id/metropolitan-district-council/wolverhampton","706697","Radis Community Care","0605201820180514","101.64","TPP - Home Care","190457638","16/05/2018","Older People Care Purchasing","OP Care Purchasing (Spot Placements)","R5420"
"Wolverhampton City Council","http://opendatacommunities.org/id/metropolitan-district-council/wolverhampton","706697","Radis Community Care","0605201820180514","51.75","TPP - Carer Support Service","190457638","16/05/2018","Carer Support","CS Care Purchasing (Spot Placements)","R5421"
"Wolverhampton City Council","http://opendatacommunities.org/id/metropolitan-district-council/wolverhampton","706697","Radis Community Care","0605201820180514","170.61","TPP - Home Care","190457638","16/05/2018","Older People Care Purchasing","OP Care Purchasing (Spot Placements)","R5420"
"Wolverhampton City Council","http://opendatacommunities.org/id/metropolitan-district-council/wolverhampton","706697","Radis Community Care","0605201820180514","206.91","TPP - Home Care","190457638","16/05/2018","Older People Care Purchasing","OP Care Purchasing (Spot Placements)","R5420"
"Wolverhampton City Council","http://opendatacommunities.org/id/metropolitan-district-council/wolverhampton","706697","Radis Community Care","0605201820180514","29.04","TPP - Home Care","190457638","16/05/2018","Older People Care Purchasing","OP Care Purchasing (Spot Placements)","R5420"
"Wolverhampton City Council","http://opendatacommunities.org/id/metropolitan-district-council/wolverhampton","706697","Radis Community Care","0605201820180514","203.28","TPP - Home Care","190457638","16/05/2018","Physical Disabilities Care Purchasing","PD Care Purchasing (Spot Placements)","R5420"
"Wolverhampton City Council","http://opendatacommunities.org/id/metropolitan-district-council/wolverhampton","706697","Radis Community Care","0605201820180514","196.02","TPP - Home Care","190457638","16/05/2018","Physical Disabilities Care Purchasing","PD Care Purchasing (Spot Placements)","R5420"
"Wolverhampton City Council","http://opendatacommunities.org/id/metropolitan-district-council/wolverhampton","706697","Radis Community Care","0605201820180514","254.10","TPP - Home Care","190457638","16/05/2018","Older People Care Purchasing","OP Care Purchasing (Spot Placements)","R5420"
"Wolverhampton City Council","http://opendatacommunities.org/id/metropolitan-district-council/wolverhampton","706697","Radis Community Care","0605201820180514","214.17","TPP - Home Care","190457638","16/05/2018","Older People Care Purchasing","OP Care Purchasing (Spot Placements)","R5420"
"Wolverhampton City Council","http://opendatacommunities.org/id/metropolitan-district-council/wolverhampton","706697","Radis Community Care","0605201820180514","79.86","TPP - Home Care","190457638","16/05/2018","Older People Care Purchasing","OP Care Purchasing (Spot Placements)","R5420"
"Wolverhampton City Council","http://opendatacommunities.org/id/metropolitan-district-council/wolverhampton","706697","Radis Community Care","0605201820180514","101.64","TPP - Home Care","190457638","16/05/2018","Older People Care Purchasing","OP Care Purchasing (Spot Placements)","R5420"
"Wolverhampton City Council","http://opendatacommunities.org/id/metropolitan-district-council/wolverhampton","706697","Radis Community Care","0605201820180514","58.08","TPP - Home Care","190457638","16/05/2018","Older People Care Purchasing","OP Care Purchasing (Spot Placements)","R5420"
"Wolverhampton City Council","http://opendatacommunities.org/id/metropolitan-district-council/wolverhampton","706697","Radis Community Care","0605201820180514","137.94","TPP - Home Care","190457638","16/05/2018","Older People Care Purchasing","OP Care Purchasing (Spot Placements)","R5420"
"Wolverhampton City Council","http://opendatacommunities.org/id/metropolitan-district-council/wolverhampton","706697","Radis Community Care","0605201820180514","272.25","TPP - Home Care","190457638","16/05/2018","Older People Care Purchasing","OP Care Purchasing (Spot Placements)","R5420"
"Wolverhampton City Council","http://opendatacommunities.org/id/metropolitan-district-council/wolverhampton","706697","Radis Community Care","0605201820180514","177.87","TPP - Home Care","190457638","16/05/2018","Older People Care Purchasing","OP Care Purchasing (Spot Placements)","R5420"
"Wolverhampton City Council","http://opendatacommunities.org/id/metropolitan-district-council/wolverhampton","706697","Radis Community Care","0605201820180514","87.12","TPP - Home Care","190457638","16/05/2018","Older People Care Purchasing","OP Care Purchasing (Spot Placements)","R5420"
"Wolverhampton City Council","http://opendatacommunities.org/id/metropolitan-district-council/wolverhampton","706697","Radis Community Care","0605201820180514","76.23","TPP - Home Care","190457638","16/05/2018","Older People Care Purchasing","OP Care Purchasing (Spot Placements)","R5420"
"Wolverhampton City Council","http://opendatacommunities.org/id/metropolitan-district-council/wolverhampton","706697","Radis Community Care","0605201820180514","41.40","TPP - Carer Support Service","190457638","16/05/2018","Carer Support","CS Care Purchasing (Spot Placements)","R5421"
"Wolverhampton City Council","http://opendatacommunities.org/id/metropolitan-district-council/wolverhampton","706697","Radis Community Care","0605201820180514","101.64","TPP - Home Care","190457638","16/05/2018","Older People Care Purchasing","OP Care Purchasing (Spot Placements)","R5420"
"Wolverhampton City Council","http://opendatacommunities.org/id/metropolitan-district-council/wolverhampton","706697","Radis Community Care","0605201820180514","199.65","TPP - Home Care","190457638","16/05/2018","Older People Care Purchasing","OP Care Purchasing (Spot Placements)","R5420"
"Wolverhampton City Council","http://opendatacommunities.org/id/metropolitan-district-council/wolverhampton","706697","Radis Community Care","0605201820180514","90.75","TPP - Home Care","190457638","16/05/2018","Older People Care Purchasing","OP Care Purchasing (Spot Placements)","R5420"
"Wolverhampton City Council","http://opendatacommunities.org/id/metropolitan-district-council/wolverhampton","706697","Radis Community Care","0605201820180514","36.30","TPP - Home Care","190457638","16/05/2018","Older People Care Purchasing","OP Care Purchasing (Spot Placements)","R5420"
"Wolverhampton City Council","http://opendatacommunities.org/id/metropolitan-district-council/wolverhampton","706697","Radis Community Care","0605201820180514","192.39","TPP - Home Care","190457638","16/05/2018","Older People Care Purchasing","OP Care Purchasing (Spot Placements)","R5420"
"Wolverhampton City Council","http://opendatacommunities.org/id/metropolitan-district-council/wolverhampton","706697","Radis Community Care","0605201820180514","98.01","TPP - Home Care","190457638","16/05/2018","Older People Care Purchasing","OP Care Purchasing (Spot Placements)","R5420"
"Wolverhampton City Council","http://opendatacommunities.org/id/metropolitan-district-council/wolverhampton","706697","Radis Community Care","0605201820180514","87.12","TPP - Home Care","190457638","16/05/2018","Older People Care Purchasing","OP Care Purchasing (Spot Placements)","R5420"
"Wolverhampton City Council","http://opendatacommunities.org/id/metropolitan-district-council/wolverhampton","706697","Radis Community Care","0605201820180514","98.01","TPP - Home Care","190457638","16/05/2018","Older People Care Purchasing","OP Care Purchasing (Spot Placements)","R5420"
"Wolverhampton City Council","http://opendatacommunities.org/id/metropolitan-district-council/wolverhampton","706697","Radis Community Care","0605201820180514","69.00","TPP - Carer Support Service","190457638","16/05/2018","Carer Support","CS Care Purchasing (Spot Placements)","R5421"
"Wolverhampton City Council","http://opendatacommunities.org/id/metropolitan-district-council/wolverhampton","706697","Radis Community Care","0605201820180514","112.53","TPP - Home Care","190457638","16/05/2018","Older People Care Purchasing","OP Care Purchasing (Spot Placements)","R5420"
"Wolverhampton City Council","http://opendatacommunities.org/id/metropolitan-district-council/wolverhampton","706697","Radis Community Care","0605201820180514","68.97","TPP - Home Care","190457638","16/05/2018","Older People Care Purchasing","OP Care Purchasing (Spot Placements)","R5420"
"Wolverhampton City Council","http://opendatacommunities.org/id/metropolitan-district-council/wolverhampton","706697","Radis Community Care","0605201820180514","112.53","TPP - Home Care","190457638","16/05/2018","Older People Care Purchasing","OP Care Purchasing (Spot Placements)","R5420"
"Wolverhampton City Council","http://opendatacommunities.org/id/metropolitan-district-council/wolverhampton","706697","Radis Community Care","0605201820180514","101.64","TPP - Home Care","190457638","16/05/2018","Older People Care Purchasing","OP Care Purchasing (Spot Placements)","R5420"
"Wolverhampton City Council","http://opendatacommunities.org/id/metropolitan-district-council/wolverhampton","706697","Radis Community Care","0605201820180514","98.01","TPP - Home Care","190457638","16/05/2018","Older People Care Purchasing","OP Care Purchasing (Spot Placements)","R5420"
"Wolverhampton City Council","http://opendatacommunities.org/id/metropolitan-district-council/wolverhampton","706697","Radis Community Care","0605201820180514","101.64","TPP - Home Care","190457638","16/05/2018","Older People Care Purchasing","OP Care Purchasing (Spot Placements)","R5420"
"Wolverhampton City Council","http://opendatacommunities.org/id/metropolitan-district-council/wolverhampton","706697","Radis Community Care","0605201820180514","166.98","TPP - Home Care","190457638","16/05/2018","Older People Care Purchasing","OP Care Purchasing (Spot Placements)","R5420"
"Wolverhampton City Council","http://opendatacommunities.org/id/metropolitan-district-council/wolverhampton","706697","Radis Community Care","0605201820180514","76.23","TPP - Home Care","190457638","16/05/2018","Older People Care Purchasing","OP Care Purchasing (Spot Placements)","R5420"
"Wolverhampton City Council","http://opendatacommunities.org/id/metropolitan-district-council/wolverhampton","706697","Radis Community Care","0605201820180514","94.38","TPP - Home Care","190457638","16/05/2018","Physical Disabilities Care Purchasing","PD Care Purchasing (Spot Placements)","R5420"
"Wolverhampton City Council","http://opendatacommunities.org/id/metropolitan-district-council/wolverhampton","706697","Radis Community Care","0605201820180514","94.38","TPP - Home Care","190457638","16/05/2018","Physical Disabilities Care Purchasing","PD Care Purchasing (Spot Placements)","R5420"
"Wolverhampton City Council","http://opendatacommunities.org/id/metropolitan-district-council/wolverhampton","706697","Radis Community Care","1305201820180522","203.28","TPP - Home Care","190462085","23/05/2018","Older People Care Purchasing","OP Care Purchasing (Spot Placements)","R5420"
"Wolverhampton City Council","http://opendatacommunities.org/id/metropolitan-district-council/wolverhampton","706697","Radis Community Care","1305201820180522","203.28","TPP - Home Care","190462085","23/05/2018","Older People Care Purchasing","OP Care Purchasing (Spot Placements)","R5420"
"Wolverhampton City Council","http://opendatacommunities.org/id/metropolitan-district-council/wolverhampton","706697","Radis Community Care","1305201820180522","116.16","TPP - Home Care","190462085","23/05/2018","Physical Disabilities Care Purchasing","PD Care Purchasing (Spot Placements)","R5420"
"Wolverhampton City Council","http://opendatacommunities.org/id/metropolitan-district-council/wolverhampton","706697","Radis Community Care","1305201820180522","58.08","TPP - Home Care","190462085","23/05/2018","Older People Care Purchasing","OP Care Purchasing (Spot Placements)","R5420"
"Wolverhampton City Council","http://opendatacommunities.org/id/metropolitan-district-council/wolverhampton","706697","Radis Community Care","1305201820180522","127.05","TPP - Home Care","190462085","23/05/2018","Older People Care Purchasing","OP Care Purchasing (Spot Placements)","R5420"
"Wolverhampton City Council","http://opendatacommunities.org/id/metropolitan-district-council/wolverhampton","706697","Radis Community Care","1305201820180522","50.82","TPP - Home Care","190462085","23/05/2018","Physical Disabilities Care Purchasing","PD Care Purchasing (Spot Placements)","R5420"
"Wolverhampton City Council","http://opendatacommunities.org/id/metropolitan-district-council/wolverhampton","706697","Radis Community Care","1305201820180522","50.82","TPP - Home Care","190462085","23/05/2018","Physical Disabilities Care Purchasing","PD Care Purchasing (Spot Placements)","R5420"
"Wolverhampton City Council","http://opendatacommunities.org/id/metropolitan-district-council/wolverhampton","706697","Radis Community Care","1305201820180522","29.04","TPP - Home Care","190462085","23/05/2018","Physical Disabilities Care Purchasing","PD Care Purchasing (Spot Placements)","R5420"
"Wolverhampton City Council","http://opendatacommunities.org/id/metropolitan-district-council/wolverhampton","706697","Radis Community Care","1305201820180522","98.01","TPP - Home Care","190462085","23/05/2018","Older People Care Purchasing","OP Care Purchasing (Spot Placements)","R5420"
"Wolverhampton City Council","http://opendatacommunities.org/id/metropolitan-district-council/wolverhampton","706697","Radis Community Care","1305201820180522","199.65","TPP - Home Care","190462085","23/05/2018","Physical Disabilities Care Purchasing","PD Care Purchasing (Spot Placements)","R5420"
"Wolverhampton City Council","http://opendatacommunities.org/id/metropolitan-district-council/wolverhampton","706697","Radis Community Care","1305201820180522","196.02","TPP - Home Care","190462085","23/05/2018","Physical Disabilities Care Purchasing","PD Care Purchasing (Spot Placements)","R5420"
"Wolverhampton City Council","http://opendatacommunities.org/id/metropolitan-district-council/wolverhampton","706697","Radis Community Care","1305201820180522","225.06","TPP - Home Care","190462085","23/05/2018","Older People Care Purchasing","OP Care Purchasing (Spot Placements)","R5420"
"Wolverhampton City Council","http://opendatacommunities.org/id/metropolitan-district-council/wolverhampton","706697","Radis Community Care","1305201820180522","36.30","TPP - Home Care","190462085","23/05/2018","Older People Care Purchasing","OP Care Purchasing (Spot Placements)","R5420"
"Wolverhampton City Council","http://opendatacommunities.org/id/metropolitan-district-council/wolverhampton","706697","Radis Community Care","1305201820180522","206.91","TPP - Home Care","190462085","23/05/2018","Older People Care Purchasing","OP Care Purchasing (Spot Placements)","R5420"
"Wolverhampton City Council","http://opendatacommunities.org/id/metropolitan-district-council/wolverhampton","706697","Radis Community Care","1305201820180522","210.54","TPP - Home Care","190462085","23/05/2018","Older People Care Purchasing","OP Care Purchasing (Spot Placements)","R5420"
"Wolverhampton City Council","http://opendatacommunities.org/id/metropolitan-district-council/wolverhampton","706697","Radis Community Care","1305201820180522","203.28","TPP - Home Care","190462085","23/05/2018","Older People Care Purchasing","OP Care Purchasing (Spot Placements)","R5420"
"Wolverhampton City Council","http://opendatacommunities.org/id/metropolitan-district-council/wolverhampton","706697","Radis Community Care","1305201820180522","453.75","TPP - Home Care","190462085","23/05/2018","Older People Care Purchasing","OP Care Purchasing (Spot Placements)","R5420"
"Wolverhampton City Council","http://opendatacommunities.org/id/metropolitan-district-council/wolverhampton","706697","Radis Community Care","1305201820180522","203.28","TPP - Home Care","190462085","23/05/2018","Older People Care Purchasing","OP Care Purchasing (Spot Placements)","R5420"
"Wolverhampton City Council","http://opendatacommunities.org/id/metropolitan-district-council/wolverhampton","706697","Radis Community Care","1305201820180522","203.28","TPP - Home Care","190462085","23/05/2018","Older People Care Purchasing","OP Care Purchasing (Spot Placements)","R5420"
"Wolverhampton City Council","http://opendatacommunities.org/id/metropolitan-district-council/wolverhampton","706697","Radis Community Care","1305201820180522","101.64","TPP - Home Care","190462085","23/05/2018","Older People Care Purchasing","OP Care Purchasing (Spot Placements)","R5420"
"Wolverhampton City Council","http://opendatacommunities.org/id/metropolitan-district-council/wolverhampton","706697","Radis Community Care","1305201820180522","145.20","TPP - Home Care","190462085","23/05/2018","Older People Care Purchasing","OP Care Purchasing (Spot Placements)","R5420"
"Wolverhampton City Council","http://opendatacommunities.org/id/metropolitan-district-council/wolverhampton","706697","Radis Community Care","1305201820180522","101.64","TPP - Home Care","190462085","23/05/2018","Older People Care Purchasing","OP Care Purchasing (Spot Placements)","R5420"
"Wolverhampton City Council","http://opendatacommunities.org/id/metropolitan-district-council/wolverhampton","706697","Radis Community Care","1305201820180522","55.20","TPP - Carer Support Service","190462085","23/05/2018","Carer Support","CS Care Purchasing (Spot Placements)","R5421"
"Wolverhampton City Council","http://opendatacommunities.org/id/metropolitan-district-council/wolverhampton","706697","Radis Community Care","1305201820180522","72.60","TPP - Home Care","190462085","23/05/2018","Older People Care Purchasing","OP Care Purchasing (Spot Placements)","R5420"
"Wolverhampton City Council","http://opendatacommunities.org/id/metropolitan-district-council/wolverhampton","706697","Radis Community Care","1305201820180522","199.65","TPP - Home Care","190462085","23/05/2018","Older People Care Purchasing","OP Care Purchasing (Spot Placements)","R5420"
"Wolverhampton City Council","http://opendatacommunities.org/id/metropolitan-district-council/wolverhampton","706697","Radis Community Care","1305201820180522","203.28","TPP - Home Care","190462085","23/05/2018","Physical Disabilities Care Purchasing","PD Care Purchasing (Spot Placements)","R5420"
"Wolverhampton City Council","http://opendatacommunities.org/id/metropolitan-district-council/wolverhampton","706697","Radis Community Care","1305201820180522","196.02","TPP - Home Care","190462085","23/05/2018","Physical Disabilities Care Purchasing","PD Care Purchasing (Spot Placements)","R5420"
"Wolverhampton City Council","http://opendatacommunities.org/id/metropolitan-district-council/wolverhampton","706697","Radis Community Care","1305201820180522","101.64","TPP - Home Care","190462085","23/05/2018","Older People Care Purchasing","OP Care Purchasing (Spot Placements)","R5420"
"Wolverhampton City Council","http://opendatacommunities.org/id/metropolitan-district-council/wolverhampton","706697","Radis Community Care","1305201820180522","177.87","TPP - Home Care","190462085","23/05/2018","Older People Care Purchasing","OP Care Purchasing (Spot Placements)","R5420"
"Wolverhampton City Council","http://opendatacommunities.org/id/metropolitan-district-council/wolverhampton","706697","Radis Community Care","1305201820180522","196.02","TPP - Home Care","190462085","23/05/2018","Older People Care Purchasing","OP Care Purchasing (Spot Placements)","R5420"
"Wolverhampton City Council","http://opendatacommunities.org/id/metropolitan-district-council/wolverhampton","706697","Radis Community Care","1305201820180522","43.56","TPP - Home Care","190462085","23/05/2018","Older People Care Purchasing","OP Care Purchasing (Spot Placements)","R5420"
"Wolverhampton City Council","http://opendatacommunities.org/id/metropolitan-district-council/wolverhampton","706697","Radis Community Care","1305201820180522","101.64","TPP - Home Care","190462085","23/05/2018","Physical Disabilities Care Purchasing","PD Care Purchasing (Spot Placements)","R5420"
"Wolverhampton City Council","http://opendatacommunities.org/id/metropolitan-district-council/wolverhampton","706697","Radis Community Care","1305201820180522","94.38","TPP - Home Care","190462085","23/05/2018","Physical Disabilities Care Purchasing","PD Care Purchasing (Spot Placements)","R5420"
"Wolverhampton City Council","http://opendatacommunities.org/id/metropolitan-district-council/wolverhampton","706697","Radis Community Care","1305201820180522","127.05","TPP - Home Care","190462085","23/05/2018","Older People Care Purchasing","OP Care Purchasing (Spot Placements)","R5420"
"Wolverhampton City Council","http://opendatacommunities.org/id/metropolitan-district-council/wolverhampton","706697","Radis Community Care","1305201820180522","127.05","TPP - Home Care","190462085","23/05/2018","Older People Care Purchasing","OP Care Purchasing (Spot Placements)","R5420"
"Wolverhampton City Council","http://opendatacommunities.org/id/metropolitan-district-council/wolverhampton","706697","Radis Community Care","1305201820180522","108.90","TPP - Home Care","190462085","23/05/2018","Older People Care Purchasing","OP Care Purchasing (Spot Placements)","R5420"
"Wolverhampton City Council","http://opendatacommunities.org/id/metropolitan-district-council/wolverhampton","706697","Radis Community Care","1305201820180522","43.56","TPP - Home Care","190462085","23/05/2018","Older People Care Purchasing","OP Care Purchasing (Spot Placements)","R5420"
"Wolverhampton City Council","http://opendatacommunities.org/id/metropolitan-district-council/wolverhampton","706697","Radis Community Care","1305201820180522","72.60","TPP - Home Care","190462085","23/05/2018","Older People Care Purchasing","OP Care Purchasing (Spot Placements)","R5420"
"Wolverhampton City Council","http://opendatacommunities.org/id/metropolitan-district-council/wolverhampton","706697","Radis Community Care","1305201820180522","43.56","TPP - Home Care","190462085","23/05/2018","Older People Care Purchasing","OP Care Purchasing (Spot Placements)","R5420"
"Wolverhampton City Council","http://opendatacommunities.org/id/metropolitan-district-council/wolverhampton","706697","Radis Community Care","1305201820180522","490.05","TPP - Home Care","190462085","23/05/2018","Physical Disabilities Care Purchasing","PD Care Purchasing (Spot Placements)","R5420"
"Wolverhampton City Council","http://opendatacommunities.org/id/metropolitan-district-council/wolverhampton","706697","Radis Community Care","1305201820180522","461.01","TPP - Home Care","190462085","23/05/2018","Physical Disabilities Care Purchasing","PD Care Purchasing (Spot Placements)","R5420"
"Wolverhampton City Council","http://opendatacommunities.org/id/metropolitan-district-council/wolverhampton","706697","Radis Community Care","1305201820180522","76.23","TPP - Home Care","190462085","23/05/2018","Learning Disabilities Care Purchasing","LD Care Purchasing (Spot Placements)","R5420"
"Wolverhampton City Council","http://opendatacommunities.org/id/metropolitan-district-council/wolverhampton","706697","Radis Community Care","1305201820180522","232.32","TPP - Home Care","190462085","23/05/2018","Older People Care Purchasing","OP Care Purchasing (Spot Placements)","R5420"
"Wolverhampton City Council","http://opendatacommunities.org/id/metropolitan-district-council/wolverhampton","706697","Radis Community Care","1305201820180522","50.82","TPP - Home Care","190462085","23/05/2018","Older People Care Purchasing","OP Care Purchasing (Spot Placements)","R5420"
"Wolverhampton City Council","http://opendatacommunities.org/id/metropolitan-district-council/wolverhampton","706697","Radis Community Care","1305201820180522","7.26","TPP - Home Care","190462085","23/05/2018","Older People Care Purchasing","OP Care Purchasing (Spot Placements)","R5420"
"Wolverhampton City Council","http://opendatacommunities.org/id/metropolitan-district-council/wolverhampton","706697","Radis Community Care","1305201820180522","94.38","TPP - Home Care","190462085","23/05/2018","Older People Care Purchasing","OP Care Purchasing (Spot Placements)","R5420"
"Wolverhampton City Council","http://opendatacommunities.org/id/metropolitan-district-council/wolverhampton","706697","Radis Community Care","1305201820180522","217.80","TPP - Home Care","190462085","23/05/2018","Older People Care Purchasing","OP Care Purchasing (Spot Placements)","R5420"
"Wolverhampton City Council","http://opendatacommunities.org/id/metropolitan-district-council/wolverhampton","706697","Radis Community Care","1305201820180522","185.13","TPP - Home Care","190462085","23/05/2018","Older People Care Purchasing","OP Care Purchasing (Spot Placements)","R5420"
"Wolverhampton City Council","http://opendatacommunities.org/id/metropolitan-district-council/wolverhampton","706697","Radis Community Care","1305201820180522","101.64","TPP - Home Care","190462085","23/05/2018","Older People Care Purchasing","OP Care Purchasing (Spot Placements)","R5420"
"Wolverhampton City Council","http://opendatacommunities.org/id/metropolitan-district-council/wolverhampton","706697","Radis Community Care","1305201820180522","47.19","TPP - Home Care","190462085","23/05/2018","Older People Care Purchasing","OP Care Purchasing (Spot Placements)","R5420"
"Wolverhampton City Council","http://opendatacommunities.org/id/metropolitan-district-council/wolverhampton","706697","Radis Community Care","1305201820180522","50.82","TPP - Home Care","190462085","23/05/2018","Older People Care Purchasing","OP Care Purchasing (Spot Placements)","R5420"
"Wolverhampton City Council","http://opendatacommunities.org/id/metropolitan-district-council/wolverhampton","706697","Radis Community Care","1305201820180522","101.64","TPP - Home Care","190462085","23/05/2018","Older People Care Purchasing","OP Care Purchasing (Spot Placements)","R5420"
"Wolverhampton City Council","http://opendatacommunities.org/id/metropolitan-district-council/wolverhampton","706697","Radis Community Care","1305201820180522","21.78","TPP - Home Care","190462085","23/05/2018","Physical Disabilities Care Purchasing","PD Care Purchasing (Spot Placements)","R5420"
"Wolverhampton City Council","http://opendatacommunities.org/id/metropolitan-district-council/wolverhampton","706697","Radis Community Care","1305201820180522","188.76","TPP - Home Care","190462085","23/05/2018","Physical Disabilities Care Purchasing","PD Care Purchasing (Spot Placements)","R5420"
"Wolverhampton City Council","http://opendatacommunities.org/id/metropolitan-district-council/wolverhampton","706697","Radis Community Care","1305201820180522","152.46","TPP - Home Care","190462085","23/05/2018","Older People Care Purchasing","OP Care Purchasing (Spot Placements)","R5420"
"Wolverhampton City Council","http://opendatacommunities.org/id/metropolitan-district-council/wolverhampton","706697","Radis Community Care","1305201820180522","232.32","TPP - Home Care","190462085","23/05/2018","Older People Care Purchasing","OP Care Purchasing (Spot Placements)","R5420"
"Wolverhampton City Council","http://opendatacommunities.org/id/metropolitan-district-council/wolverhampton","706697","Radis Community Care","1305201820180522","65.34","TPP - Home Care","190462085","23/05/2018","Physical Disabilities Care Purchasing","PD Care Purchasing (Spot Placements)","R5420"
"Wolverhampton City Council","http://opendatacommunities.org/id/metropolitan-district-council/wolverhampton","706697","Radis Community Care","1305201820180522","76.23","TPP - Home Care","190462085","23/05/2018","Older People Care Purchasing","OP Care Purchasing (Spot Placements)","R5420"
"Wolverhampton City Council","http://opendatacommunities.org/id/metropolitan-district-council/wolverhampton","706697","Radis Community Care","1305201820180522","101.64","TPP - Home Care","190462085","23/05/2018","Older People Care Purchasing","OP Care Purchasing (Spot Placements)","R5420"
"Wolverhampton City Council","http://opendatacommunities.org/id/metropolitan-district-council/wolverhampton","706697","Radis Community Care","1305201820180522","101.64","TPP - Home Care","190462085","23/05/2018","Older People Care Purchasing","OP Care Purchasing (Spot Placements)","R5420"
"Wolverhampton City Council","http://opendatacommunities.org/id/metropolitan-district-council/wolverhampton","706697","Radis Community Care","1305201820180522","29.04","TPP - Home Care","190462085","23/05/2018","Older People Care Purchasing","OP Care Purchasing (Spot Placements)","R5420"
"Wolverhampton City Council","http://opendatacommunities.org/id/metropolitan-district-council/wolverhampton","706697","Radis Community Care","1305201820180522","29.04","TPP - Home Care","190462085","23/05/2018","Older People Care Purchasing","OP Care Purchasing (Spot Placements)","R5420"
"Wolverhampton City Council","http://opendatacommunities.org/id/metropolitan-district-council/wolverhampton","706697","Radis Community Care","1305201820180522","101.64","TPP - Home Care","190462085","23/05/2018","Older People Care Purchasing","OP Care Purchasing (Spot Placements)","R5420"
"Wolverhampton City Council","http://opendatacommunities.org/id/metropolitan-district-council/wolverhampton","706697","Radis Community Care","1305201820180522","279.51","TPP - Home Care","190462085","23/05/2018","Physical Disabilities Care Purchasing","PD Care Purchasing (Spot Placements)","R5420"
"Wolverhampton City Council","http://opendatacommunities.org/id/metropolitan-district-council/wolverhampton","706697","Radis Community Care","1305201820180522","58.08","TPP - Home Care","190462085","23/05/2018","Physical Disabilities Care Purchasing","PD Care Purchasing (Spot Placements)","R5420"
"Wolverhampton City Council","http://opendatacommunities.org/id/metropolitan-district-council/wolverhampton","706697","Radis Community Care","1305201820180522","39.93","TPP - Home Care","190462085","23/05/2018","Older People Care Purchasing","OP Care Purchasing (Spot Placements)","R5420"
"Wolverhampton City Council","http://opendatacommunities.org/id/metropolitan-district-council/wolverhampton","706697","Radis Community Care","1305201820180522","76.23","TPP - Home Care","190462085","23/05/2018","Physical Disabilities Care Purchasing","PD Care Purchasing (Spot Placements)","R5420"
"Wolverhampton City Council","http://opendatacommunities.org/id/metropolitan-district-council/wolverhampton","706697","Radis Community Care","1305201820180522","76.23","TPP - Home Care","190462085","23/05/2018","Physical Disabilities Care Purchasing","PD Care Purchasing (Spot Placements)","R5420"
"Wolverhampton City Council","http://opendatacommunities.org/id/metropolitan-district-council/wolverhampton","706697","Radis Community Care","1305201820180522","32.67","TPP - Home Care","190462085","23/05/2018","Physical Disabilities Care Purchasing","PD Care Purchasing (Spot Placements)","R5420"
"Wolverhampton City Council","http://opendatacommunities.org/id/metropolitan-district-council/wolverhampton","706697","Radis Community Care","1305201820180522","127.05","TPP - Home Care","190462085","23/05/2018","Older People Care Purchasing","OP Care Purchasing (Spot Placements)","R5420"
"Wolverhampton City Council","http://opendatacommunities.org/id/metropolitan-district-council/wolverhampton","706697","Radis Community Care","1305201820180522","221.43","TPP - Home Care","190462085","23/05/2018","Older People Care Purchasing","OP Care Purchasing (Spot Placements)","R5420"
"Wolverhampton City Council","http://opendatacommunities.org/id/metropolitan-district-council/wolverhampton","706697","Radis Community Care","1305201820180522","225.06","TPP - Home Care","190462085","23/05/2018","Older People Care Purchasing","OP Care Purchasing (Spot Placements)","R5420"
"Wolverhampton City Council","http://opendatacommunities.org/id/metropolitan-district-council/wolverhampton","706697","Radis Community Care","1305201820180522","228.69","TPP - Home Care","190462085","23/05/2018","Older People Care Purchasing","OP Care Purchasing (Spot Placements)","R5420"
"Wolverhampton City Council","http://opendatacommunities.org/id/metropolitan-district-council/wolverhampton","706697","Radis Community Care","1305201820180522","156.09","TPP - Home Care","190462085","23/05/2018","Older People Care Purchasing","OP Care Purchasing (Spot Placements)","R5420"
"Wolverhampton City Council","http://opendatacommunities.org/id/metropolitan-district-council/wolverhampton","706697","Radis Community Care","1305201820180522","105.27","TPP - Home Care","190462085","23/05/2018","Older People Care Purchasing","OP Care Purchasing (Spot Placements)","R5420"
"Wolverhampton City Council","http://opendatacommunities.org/id/metropolitan-district-council/wolverhampton","706697","Radis Community Care","1305201820180522","43.56","TPP - Home Care","190462085","23/05/2018","Older People Care Purchasing","OP Care Purchasing (Spot Placements)","R5420"
"Wolverhampton City Council","http://opendatacommunities.org/id/metropolitan-district-council/wolverhampton","706697","Radis Community Care","1305201820180522","159.72","TPP - Home Care","190462085","23/05/2018","Older People Care Purchasing","OP Care Purchasing (Spot Placements)","R5420"
"Wolverhampton City Council","http://opendatacommunities.org/id/metropolitan-district-council/wolverhampton","706697","Radis Community Care","1305201820180522","156.09","TPP - Home Care","190462085","23/05/2018","Older People Care Purchasing","OP Care Purchasing (Spot Placements)","R5420"
"Wolverhampton City Council","http://opendatacommunities.org/id/metropolitan-district-council/wolverhampton","706697","Radis Community Care","1305201820180522","152.46","TPP - Home Care","190462085","23/05/2018","Older People Care Purchasing","OP Care Purchasing (Spot Placements)","R5420"
"Wolverhampton City Council","http://opendatacommunities.org/id/metropolitan-district-council/wolverhampton","706697","Radis Community Care","1305201820180522","105.27","TPP - Home Care","190462085","23/05/2018","Older People Care Purchasing","OP Care Purchasing (Spot Placements)","R5420"
"Wolverhampton City Council","http://opendatacommunities.org/id/metropolitan-district-council/wolverhampton","706697","Radis Community Care","1305201820180522","152.46","TPP - Home Care","190462085","23/05/2018","Older People Care Purchasing","OP Care Purchasing (Spot Placements)","R5420"
"Wolverhampton City Council","http://opendatacommunities.org/id/metropolitan-district-council/wolverhampton","706697","Radis Community Care","1305201820180522","152.46","TPP - Home Care","190462085","23/05/2018","Older People Care Purchasing","OP Care Purchasing (Spot Placements)","R5420"
"Wolverhampton City Council","http://opendatacommunities.org/id/metropolitan-district-council/wolverhampton","706697","Radis Community Care","1305201820180522","50.82","TPP - Home Care","190462085","23/05/2018","Older People Care Purchasing","OP Care Purchasing (Spot Placements)","R5420"
"Wolverhampton City Council","http://opendatacommunities.org/id/metropolitan-district-council/wolverhampton","706697","Radis Community Care","1305201820180522","130.68","TPP - Home Care","190462085","23/05/2018","Older People Care Purchasing","OP Care Purchasing (Spot Placements)","R5420"
"Wolverhampton City Council","http://opendatacommunities.org/id/metropolitan-district-council/wolverhampton","706697","Radis Community Care","1305201820180522","127.05","TPP - Home Care","190462085","23/05/2018","Older People Care Purchasing","OP Care Purchasing (Spot Placements)","R5420"
"Wolverhampton City Council","http://opendatacommunities.org/id/metropolitan-district-council/wolverhampton","706697","Radis Community Care","1305201820180522","29.04","TPP - Home Care","190462085","23/05/2018","Physical Disabilities Care Purchasing","PD Care Purchasing (Spot Placements)","R5420"
"Wolverhampton City Council","http://opendatacommunities.org/id/metropolitan-district-council/wolverhampton","706697","Radis Community Care","1305201820180522","196.02","TPP - Home Care","190462085","23/05/2018","Older People Care Purchasing","OP Care Purchasing (Spot Placements)","R5420"
"Wolverhampton City Council","http://opendatacommunities.org/id/metropolitan-district-council/wolverhampton","706697","Radis Community Care","1305201820180522","101.64","TPP - Home Care","190462085","23/05/2018","Older People Care Purchasing","OP Care Purchasing (Spot Placements)","R5420"
"Wolverhampton City Council","http://opendatacommunities.org/id/metropolitan-district-council/wolverhampton","706697","Radis Community Care","1305201820180522","286.77","TPP - Home Care","190462085","23/05/2018","Physical Disabilities Care Purchasing","PD Care Purchasing (Spot Placements)","R5420"
"Wolverhampton City Council","http://opendatacommunities.org/id/metropolitan-district-council/wolverhampton","706697","Radis Community Care","1305201820180522","108.90","TPP - Home Care","190462085","23/05/2018","Older People Care Purchasing","OP Care Purchasing (Spot Placements)","R5420"
"Wolverhampton City Council","http://opendatacommunities.org/id/metropolitan-district-council/wolverhampton","706697","Radis Community Care","1305201820180522","206.91","TPP - Home Care","190462085","23/05/2018","Older People Care Purchasing","OP Care Purchasing (Spot Placements)","R5420"
"Wolverhampton City Council","http://opendatacommunities.org/id/metropolitan-district-council/wolverhampton","706697","Radis Community Care","1305201820180522","199.65","TPP - Home Care","190462085","23/05/2018","Older People Care Purchasing","OP Care Purchasing (Spot Placements)","R5420"
"Wolverhampton City Council","http://opendatacommunities.org/id/metropolitan-district-council/wolverhampton","706697","Radis Community Care","1305201820180522","163.35","TPP - Home Care","190462085","23/05/2018","Physical Disabilities Care Purchasing","PD Care Purchasing (Spot Placements)","R5420"
"Wolverhampton City Council","http://opendatacommunities.org/id/metropolitan-district-council/wolverhampton","706697","Radis Community Care","1305201820180522","141.57","TPP - Home Care","190462085","23/05/2018","Physical Disabilities Care Purchasing","PD Care Purchasing (Spot Placements)","R5420"
"Wolverhampton City Council","http://opendatacommunities.org/id/metropolitan-district-council/wolverhampton","706697","Radis Community Care","1305201820180522","50.82","TPP - Home Care","190462085","23/05/2018","Older People Care Purchasing","OP Care Purchasing (Spot Placements)","R5420"
"Wolverhampton City Council","http://opendatacommunities.org/id/metropolitan-district-council/wolverhampton","706697","Radis Community Care","1305201820180522","166.98","TPP - Home Care","190462085","23/05/2018","Physical Disabilities Care Purchasing","PD Care Purchasing (Spot Placements)","R5420"
"Wolverhampton City Council","http://opendatacommunities.org/id/metropolitan-district-council/wolverhampton","706697","Radis Community Care","1305201820180522","177.87","TPP - Home Care","190462085","23/05/2018","Physical Disabilities Care Purchasing","PD Care Purchasing (Spot Placements)","R5420"
"Wolverhampton City Council","http://opendatacommunities.org/id/metropolitan-district-council/wolverhampton","706697","Radis Community Care","1305201820180522","87.12","TPP - Home Care","190462085","23/05/2018","Mental Health Assesment & Care Management","MH Care Purchasing (Spot Placements)","R5420"
"Wolverhampton City Council","http://opendatacommunities.org/id/metropolitan-district-council/wolverhampton","706697","Radis Community Care","1305201820180522","50.82","TPP - Home Care","190462085","23/05/2018","Older People Care Purchasing","OP Care Purchasing (Spot Placements)","R5420"
"Wolverhampton City Council","http://opendatacommunities.org/id/metropolitan-district-council/wolverhampton","706697","Radis Community Care","1305201820180522","50.82","TPP - Home Care","190462085","23/05/2018","Older People Care Purchasing","OP Care Purchasing (Spot Placements)","R5420"
"Wolverhampton City Council","http://opendatacommunities.org/id/metropolitan-district-council/wolverhampton","706697","Radis Community Care","1305201820180522","174.24","TPP - Home Care","190462085","23/05/2018","Older People Care Purchasing","OP Care Purchasing (Spot Placements)","R5420"
"Wolverhampton City Council","http://opendatacommunities.org/id/metropolitan-district-council/wolverhampton","706697","Radis Community Care","1305201820180522","101.64","TPP - Home Care","190462085","23/05/2018","Older People Care Purchasing","OP Care Purchasing (Spot Placements)","R5420"
"Wolverhampton City Council","http://opendatacommunities.org/id/metropolitan-district-council/wolverhampton","706697","Radis Community Care","1305201820180522","163.35","TPP - Home Care","190462085","23/05/2018","Older People Care Purchasing","OP Care Purchasing (Spot Placements)","R5420"
"Wolverhampton City Council","http://opendatacommunities.org/id/metropolitan-district-council/wolverhampton","706697","Radis Community Care","1305201820180522","101.64","TPP - Home Care","190462085","23/05/2018","Older People Care Purchasing","OP Care Purchasing (Spot Placements)","R5420"
"Wolverhampton City Council","http://opendatacommunities.org/id/metropolitan-district-council/wolverhampton","706697","Radis Community Care","1305201820180522","41.40","TPP - Carer Support Service","190462085","23/05/2018","Carer Support","CS Care Purchasing (Spot Placements)","R5421"
"Wolverhampton City Council","http://opendatacommunities.org/id/metropolitan-district-council/wolverhampton","706697","Radis Community Care","1305201820180522","225.06","TPP - Home Care","190462085","23/05/2018","Older People Care Purchasing","OP Care Purchasing (Spot Placements)","R5420"
"Wolverhampton City Council","http://opendatacommunities.org/id/metropolitan-district-council/wolverhampton","706697","Radis Community Care","1305201820180522","72.60","TPP - Home Care","190462085","23/05/2018","Physical Disabilities Care Purchasing","PD Care Purchasing (Spot Placements)","R5420"
"Wolverhampton City Council","http://opendatacommunities.org/id/metropolitan-district-council/wolverhampton","706697","Radis Community Care","1305201820180522","21.78","TPP - Home Care","190462085","23/05/2018","Mental Health Assesment & Care Management","MH Care Purchasing (Spot Placements)","R5420"
"Wolverhampton City Council","http://opendatacommunities.org/id/metropolitan-district-council/wolverhampton","706697","Radis Community Care","1305201820180522","101.64","TPP - Home Care","190462085","23/05/2018","Older People Care Purchasing","OP Care Purchasing (Spot Placements)","R5420"
"Wolverhampton City Council","http://opendatacommunities.org/id/metropolitan-district-council/wolverhampton","706697","Radis Community Care","1305201820180522","196.02","TPP - Home Care","190462085","23/05/2018","Older People Care Purchasing","OP Care Purchasing (Spot Placements)","R5420"
"Wolverhampton City Council","http://opendatacommunities.org/id/metropolitan-district-council/wolverhampton","706697","Radis Community Care","1305201820180522","98.01","TPP - Home Care","190462085","23/05/2018","Older People Care Purchasing","OP Care Purchasing (Spot Placements)","R5420"
"Wolverhampton City Council","http://opendatacommunities.org/id/metropolitan-district-council/wolverhampton","706697","Radis Community Care","1305201820180522","29.04","TPP - Home Care","190462085","23/05/2018","Older People Care Purchasing","OP Care Purchasing (Spot Placements)","R5420"
"Wolverhampton City Council","http://opendatacommunities.org/id/metropolitan-district-council/wolverhampton","706697","Radis Community Care","1305201820180522","94.38","TPP - Home Care","190462085","23/05/2018","Older People Care Purchasing","OP Care Purchasing (Spot Placements)","R5420"
"Wolverhampton City Council","http://opendatacommunities.org/id/metropolitan-district-council/wolverhampton","706697","Radis Community Care","1305201820180522","65.34","TPP - Home Care","190462085","23/05/2018","Older People Care Purchasing","OP Care Purchasing (Spot Placements)","R5420"
"Wolverhampton City Council","http://opendatacommunities.org/id/metropolitan-district-council/wolverhampton","706697","Radis Community Care","1305201820180522","210.54","TPP - Home Care","190462085","23/05/2018","Older People Care Purchasing","OP Care Purchasing (Spot Placements)","R5420"
"Wolverhampton City Council","http://opendatacommunities.org/id/metropolitan-district-council/wolverhampton","706697","Radis Community Care","1305201820180522","127.05","TPP - Home Care","190462085","23/05/2018","Older People Care Purchasing","OP Care Purchasing (Spot Placements)","R5420"
"Wolverhampton City Council","http://opendatacommunities.org/id/metropolitan-district-council/wolverhampton","706697","Radis Community Care","1305201820180522","156.09","TPP - Home Care","190462085","23/05/2018","Older People Care Purchasing","OP Care Purchasing (Spot Placements)","R5420"
"Wolverhampton City Council","http://opendatacommunities.org/id/metropolitan-district-council/wolverhampton","706697","Radis Community Care","1305201820180522","58.08","TPP - Home Care","190462085","23/05/2018","Older People Care Purchasing","OP Care Purchasing (Spot Placements)","R5420"
"Wolverhampton City Council","http://opendatacommunities.org/id/metropolitan-district-council/wolverhampton","706697","Radis Community Care","1305201820180522","58.08","TPP - Home Care","190462085","23/05/2018","Older People Care Purchasing","OP Care Purchasing (Spot Placements)","R5420"
"Wolverhampton City Council","http://opendatacommunities.org/id/metropolitan-district-council/wolverhampton","706697","Radis Community Care","1305201820180522","54.45","TPP - Home Care","190462085","23/05/2018","Older People Care Purchasing","OP Care Purchasing (Spot Placements)","R5420"
"Wolverhampton City Council","http://opendatacommunities.org/id/metropolitan-district-council/wolverhampton","706697","Radis Community Care","1305201820180522","50.82","TPP - Home Care","190462085","23/05/2018","Older People Care Purchasing","OP Care Purchasing (Spot Placements)","R5420"
"Wolverhampton City Council","http://opendatacommunities.org/id/metropolitan-district-council/wolverhampton","706697","Radis Community Care","1305201820180522","50.82","TPP - Home Care","190462085","23/05/2018","Older People Care Purchasing","OP Care Purchasing (Spot Placements)","R5420"
"Wolverhampton City Council","http://opendatacommunities.org/id/metropolitan-district-council/wolverhampton","706697","Radis Community Care","1305201820180522","41.40","TPP - Carer Support Service","190462085","23/05/2018","Carer Support","CS Care Purchasing (Spot Placements)","R5421"
"Wolverhampton City Council","http://opendatacommunities.org/id/metropolitan-district-council/wolverhampton","706697","Radis Community Care","1305201820180522","225.06","TPP - Home Care","190462085","23/05/2018","Older People Care Purchasing","OP Care Purchasing (Spot Placements)","R5420"
"Wolverhampton City Council","http://opendatacommunities.org/id/metropolitan-district-council/wolverhampton","706697","Radis Community Care","1305201820180522","254.10","TPP - Home Care","190462085","23/05/2018","Older People Care Purchasing","OP Care Purchasing (Spot Placements)","R5420"
"Wolverhampton City Council","http://opendatacommunities.org/id/metropolitan-district-council/wolverhampton","706697","Radis Community Care","1305201820180522","101.64","TPP - Home Care","190462085","23/05/2018","Older People Care Purchasing","OP Care Purchasing (Spot Placements)","R5420"
"Wolverhampton City Council","http://opendatacommunities.org/id/metropolitan-district-council/wolverhampton","706697","Radis Community Care","1305201820180522","58.08","TPP - Home Care","190462085","23/05/2018","Older People Care Purchasing","OP Care Purchasing (Spot Placements)","R5420"
"Wolverhampton City Council","http://opendatacommunities.org/id/metropolitan-district-council/wolverhampton","706697","Radis Community Care","1305201820180522","94.38","TPP - Home Care","190462085","23/05/2018","Older People Care Purchasing","OP Care Purchasing (Spot Placements)","R5420"
"Wolverhampton City Council","http://opendatacommunities.org/id/metropolitan-district-council/wolverhampton","706697","Radis Community Care","1305201820180522","170.61","TPP - Home Care","190462085","23/05/2018","Older People Care Purchasing","OP Care Purchasing (Spot Placements)","R5420"
"Wolverhampton City Council","http://opendatacommunities.org/id/metropolitan-district-council/wolverhampton","706697","Radis Community Care","1305201820180522","101.64","TPP - Home Care","190462085","23/05/2018","Older People Care Purchasing","OP Care Purchasing (Spot Placements)","R5420"
"Wolverhampton City Council","http://opendatacommunities.org/id/metropolitan-district-council/wolverhampton","706697","Radis Community Care","1305201820180522","72.60","TPP - Home Care","190462085","23/05/2018","Older People Care Purchasing","OP Care Purchasing (Spot Placements)","R5420"
"Wolverhampton City Council","http://opendatacommunities.org/id/metropolitan-district-council/wolverhampton","706697","Radis Community Care","1305201820180522","69.00","TPP - Carer Support Service","190462085","23/05/2018","Carer Support","CS Care Purchasing (Spot Placements)","R5421"
"Wolverhampton City Council","http://opendatacommunities.org/id/metropolitan-district-council/wolverhampton","706697","Radis Community Care","1305201820180522","188.76","TPP - Home Care","190462085","23/05/2018","Older People Care Purchasing","OP Care Purchasing (Spot Placements)","R5420"
"Wolverhampton City Council","http://opendatacommunities.org/id/metropolitan-district-council/wolverhampton","706697","Radis Community Care","1305201820180522","192.39","TPP - Home Care","190462085","23/05/2018","Older People Care Purchasing","OP Care Purchasing (Spot Placements)","R5420"
"Wolverhampton City Council","http://opendatacommunities.org/id/metropolitan-district-council/wolverhampton","706697","Radis Community Care","1305201820180522","214.17","TPP - Home Care","190462085","23/05/2018","Older People Care Purchasing","OP Care Purchasing (Spot Placements)","R5420"
"Wolverhampton City Council","http://opendatacommunities.org/id/metropolitan-district-council/wolverhampton","706697","Radis Community Care","1305201820180522","87.12","TPP - Home Care","190462085","23/05/2018","Older People Care Purchasing","OP Care Purchasing (Spot Placements)","R5420"
"Wolverhampton City Council","http://opendatacommunities.org/id/metropolitan-district-council/wolverhampton","706697","Radis Community Care","1305201820180522","235.95","TPP - Home Care","190462085","23/05/2018","Older People Care Purchasing","OP Care Purchasing (Spot Placements)","R5420"
"Wolverhampton City Council","http://opendatacommunities.org/id/metropolitan-district-council/wolverhampton","706697","Radis Community Care","1305201820180522","32.67","TPP - Home Care","190462085","23/05/2018","Older People Care Purchasing","OP Care Purchasing (Spot Placements)","R5420"
"Wolverhampton City Council","http://opendatacommunities.org/id/metropolitan-district-council/wolverhampton","706697","Radis Community Care","1305201820180522","257.73","TPP - Home Care","190462085","23/05/2018","Older People Care Purchasing","OP Care Purchasing (Spot Placements)","R5420"
"Wolverhampton City Council","http://opendatacommunities.org/id/metropolitan-district-council/wolverhampton","706697","Radis Community Care","1305201820180522","221.43","TPP - Home Care","190462085","23/05/2018","Older People Care Purchasing","OP Care Purchasing (Spot Placements)","R5420"
"Wolverhampton City Council","http://opendatacommunities.org/id/metropolitan-district-council/wolverhampton","706697","Radis Community Care","1305201820180522","98.01","TPP - Home Care","190462085","23/05/2018","Older People Care Purchasing","OP Care Purchasing (Spot Placements)","R5420"
"Wolverhampton City Council","http://opendatacommunities.org/id/metropolitan-district-council/wolverhampton","706697","Radis Community Care","1305201820180522","54.45","TPP - Home Care","190462085","23/05/2018","Older People Care Purchasing","OP Care Purchasing (Spot Placements)","R5420"
"Wolverhampton City Council","http://opendatacommunities.org/id/metropolitan-district-council/wolverhampton","706697","Radis Community Care","1305201820180522","134.31","TPP - Home Care","190462085","23/05/2018","Older People Care Purchasing","OP Care Purchasing (Spot Placements)","R5420"
"Wolverhampton City Council","http://opendatacommunities.org/id/metropolitan-district-council/wolverhampton","706697","Radis Community Care","1305201820180522","108.90","TPP - Home Care","190462085","23/05/2018","Older People Care Purchasing","OP Care Purchasing (Spot Placements)","R5420"
"Wolverhampton City Council","http://opendatacommunities.org/id/metropolitan-district-council/wolverhampton","706697","Radis Community Care","1305201820180522","21.78","TPP - Home Care","190462085","23/05/2018","Older People Care Purchasing","OP Care Purchasing (Spot Placements)","R5420"
"Wolverhampton City Council","http://opendatacommunities.org/id/metropolitan-district-council/wolverhampton","706697","Radis Community Care","1305201820180522","21.78","TPP - Home Care","190462085","23/05/2018","Older People Care Purchasing","OP Care Purchasing (Spot Placements)","R5420"
"Wolverhampton City Council","http://opendatacommunities.org/id/metropolitan-district-council/wolverhampton","706697","Radis Community Care","1305201820180522","199.65","TPP - Home Care","190462085","23/05/2018","Older People Care Purchasing","OP Care Purchasing (Spot Placements)","R5420"
"Wolverhampton City Council","http://opendatacommunities.org/id/metropolitan-district-council/wolverhampton","706697","Radis Community Care","1305201820180522","145.20","TPP - Home Care","190462085","23/05/2018","Older People Care Purchasing","OP Care Purchasing (Spot Placements)","R5420"
"Wolverhampton City Council","http://opendatacommunities.org/id/metropolitan-district-council/wolverhampton","706697","Radis Community Care","1305201820180522","87.12","TPP - Home Care","190462085","23/05/2018","Older People Care Purchasing","OP Care Purchasing (Spot Placements)","R5420"
"Wolverhampton City Council","http://opendatacommunities.org/id/metropolitan-district-council/wolverhampton","706697","Radis Community Care","1305201820180522","76.23","TPP - Home Care","190462085","23/05/2018","Older People Care Purchasing","OP Care Purchasing (Spot Placements)","R5420"
"Wolverhampton City Council","http://opendatacommunities.org/id/metropolitan-district-council/wolverhampton","706697","Radis Community Care","1305201820180522","41.40","TPP - Carer Support Service","190462085","23/05/2018","Carer Support","CS Care Purchasing (Spot Placements)","R5421"
"Wolverhampton City Council","http://opendatacommunities.org/id/metropolitan-district-council/wolverhampton","706697","Radis Community Care","1305201820180522","101.64","TPP - Home Care","190462085","23/05/2018","Older People Care Purchasing","OP Care Purchasing (Spot Placements)","R5420"
"Wolverhampton City Council","http://opendatacommunities.org/id/metropolitan-district-council/wolverhampton","706697","Radis Community Care","1305201820180522","203.28","TPP - Home Care","190462085","23/05/2018","Older People Care Purchasing","OP Care Purchasing (Spot Placements)","R5420"
"Wolverhampton City Council","http://opendatacommunities.org/id/metropolitan-district-council/wolverhampton","706705","Rainbow Taxis Limited","6091","935.00","Client Transport","130215821","11/05/2018","Special Educational Needs","Special - Transport","R3042"
"Wolverhampton City Council","http://opendatacommunities.org/id/metropolitan-district-council/wolverhampton","706705","Rainbow Taxis Limited","6083","629.85","Client Transport","130215813","11/05/2018","Special Educational Needs","Special - Transport","R3042"
"Wolverhampton City Council","http://opendatacommunities.org/id/metropolitan-district-council/wolverhampton","706705","Rainbow Taxis Limited","6095","729.30","Client Transport","130215825","11/05/2018","Special Educational Needs","Special - Transport","R3042"
"Wolverhampton City Council","http://opendatacommunities.org/id/metropolitan-district-council/wolverhampton","706705","Rainbow Taxis Limited","6099","847.00","Client Transport","130215828","11/05/2018","Special Educational Needs","Primary - Transport","R3042"
"Wolverhampton City Council","http://opendatacommunities.org/id/metropolitan-district-council/wolverhampton","706705","Rainbow Taxis Limited","6084","612.00","Client Transport","130215814","11/05/2018","Special Educational Needs","Special - Transport","R3042"
"Wolverhampton City Council","http://opendatacommunities.org/id/metropolitan-district-council/wolverhampton","706705","Rainbow Taxis Limited","6093","803.00","Client Transport","130215823","11/05/2018","Special Educational Needs","Special - Transport","R3042"
"Wolverhampton City Council","http://opendatacommunities.org/id/metropolitan-district-council/wolverhampton","706705","Rainbow Taxis Limited","6092","935.00","Client Transport","130215822","11/05/2018","Special Educational Needs","Special - Transport","R3042"
"Wolverhampton City Council","http://opendatacommunities.org/id/metropolitan-district-council/wolverhampton","706705","Rainbow Taxis Limited","6103","833.50","Client Transport","130215832","11/05/2018","Special Educational Needs","Special - Transport","R3042"
"Wolverhampton City Council","http://opendatacommunities.org/id/metropolitan-district-council/wolverhampton","706705","Rainbow Taxis Limited","6096","713.90","Client Transport","130215826","11/05/2018","Special Educational Needs","Special - Transport","R3042"
"Wolverhampton City Council","http://opendatacommunities.org/id/metropolitan-district-council/wolverhampton","706705","Rainbow Taxis Limited","6102","576.00","Client Transport","130215831","11/05/2018","Special Educational Needs","Student Awards","R3042"
"Wolverhampton City Council","http://opendatacommunities.org/id/metropolitan-district-council/wolverhampton","706705","Rainbow Taxis Limited","6085","638.00","Client Transport","130215815","11/05/2018","Special Educational Needs","Special - Transport","R3042"
"Wolverhampton City Council","http://opendatacommunities.org/id/metropolitan-district-council/wolverhampton","706705","Rainbow Taxis Limited","6097","1,231.16","Client Transport","130215998","16/05/2018","Special Educational Needs","Special - Transport","R3042"
"Wolverhampton City Council","http://opendatacommunities.org/id/metropolitan-district-council/wolverhampton","706705","Rainbow Taxis Limited","6104","803.00","Client Transport","130215833","11/05/2018","School Planning & Resources","Home to College Transport","R3042"
"Wolverhampton City Council","http://opendatacommunities.org/id/metropolitan-district-council/wolverhampton","706705","Rainbow Taxis Limited","6094","925.10","Client Transport","130215824","11/05/2018","Special Educational Needs","Primary - Transport","R3042"
"Wolverhampton City Council","http://opendatacommunities.org/id/metropolitan-district-council/wolverhampton","706705","Rainbow Taxis Limited","6082","632.90","Client Transport","130215812","11/05/2018","Special Educational Needs","Special - Transport","R3042"
"Wolverhampton City Council","http://opendatacommunities.org/id/metropolitan-district-council/wolverhampton","706705","Rainbow Taxis Limited","6089","1,118.52","Client Transport","130215819","11/05/2018","Special Educational Needs","Special - Transport","R3042"
"Wolverhampton City Council","http://opendatacommunities.org/id/metropolitan-district-council/wolverhampton","706705","Rainbow Taxis Limited","6087","650.00","Client Transport","130215817","11/05/2018","Special Educational Needs","Special - Transport","R3042"
"Wolverhampton City Council","http://opendatacommunities.org/id/metropolitan-district-council/wolverhampton","706705","Rainbow Taxis Limited","6098","913.00","Client Transport","130215827","11/05/2018","Special Educational Needs","Primary - Transport","R3042"
"Wolverhampton City Council","http://opendatacommunities.org/id/metropolitan-district-council/wolverhampton","706705","Rainbow Taxis Limited","6100","913.00","Client Transport","130215829","11/05/2018","Special Educational Needs","Primary - Transport","R3042"
"Wolverhampton City Council","http://opendatacommunities.org/id/metropolitan-district-council/wolverhampton","706705","Rainbow Taxis Limited","6101","754.60","Client Transport","130215830","11/05/2018","Special Educational Needs","Special - Transport","R3042"
"Wolverhampton City Council","http://opendatacommunities.org/id/metropolitan-district-council/wolverhampton","706705","Rainbow Taxis Limited","6081","770.00","Client Transport","130215811","11/05/2018","Special Educational Needs","Special - Transport","R3042"
"Wolverhampton City Council","http://opendatacommunities.org/id/metropolitan-district-council/wolverhampton","706705","Rainbow Taxis Limited","6088","729.30","Client Transport","130215818","11/05/2018","Special Educational Needs","Special - Transport","R3042"
"Wolverhampton City Council","http://opendatacommunities.org/id/metropolitan-district-council/wolverhampton","706705","Rainbow Taxis Limited","6086","657.80","Client Transport","130215816","11/05/2018","Special Educational Needs","Special - Transport","R3042"
"Wolverhampton City Council","http://opendatacommunities.org/id/metropolitan-district-council/wolverhampton","706705","Rainbow Taxis Limited","6090","1,141.40","Client Transport","130215820","11/05/2018","Special Educational Needs","Special - Transport","R3042"
"Wolverhampton City Council","http://opendatacommunities.org/id/metropolitan-district-council/wolverhampton","706718","Raring2Go","R2G01151","485.00","Marketing \ Non-staff advertising","130213556","11/05/2018","Visitor Economy","Arts Publicity","R4317"
"Wolverhampton City Council","http://opendatacommunities.org/id/metropolitan-district-council/wolverhampton","706779","Re-Entry Project","7636","839.52","TPP - Alternative Provision of Education","130216001","18/05/2018","Special Educational Needs","SEN Education OOC","R5037"
"Wolverhampton City Council","http://opendatacommunities.org/id/metropolitan-district-council/wolverhampton","706779","Re-Entry Project","7612","1,080.00","TPP - Alternative Provision of Education","130216647","21/05/2018","Specialist Support","Alternative Provision","R5037"
"Wolverhampton City Council","http://opendatacommunities.org/id/metropolitan-district-council/wolverhampton","706779","Re-Entry Project","7621","839.52","TPP - Alternative Provision of Education","130216651","21/05/2018","Specialist Support","Alternative Provision","R5037"
"Wolverhampton City Council","http://opendatacommunities.org/id/metropolitan-district-council/wolverhampton","706779","Re-Entry Project","7603","279.84","TPP - Alternative Provision of Education","130216643","21/05/2018","Specialist Support","Alternative Provision","R5037"
"Wolverhampton City Council","http://opendatacommunities.org/id/metropolitan-district-council/wolverhampton","706779","Re-Entry Project","7622","839.52","TPP - Alternative Provision of Education","130215999","18/05/2018","Special Educational Needs","SEN Education OOC","R5037"
"Wolverhampton City Council","http://opendatacommunities.org/id/metropolitan-district-council/wolverhampton","706779","Re-Entry Project","7609","839.52","TPP - Alternative Provision of Education","130216646","21/05/2018","Specialist Support","Alternative Provision","R5037"
"Wolverhampton City Council","http://opendatacommunities.org/id/metropolitan-district-council/wolverhampton","706779","Re-Entry Project","7616","839.52","TPP - Alternative Provision of Education","130216650","21/05/2018","Specialist Support","Alternative Provision","R5037"
"Wolverhampton City Council","http://opendatacommunities.org/id/metropolitan-district-council/wolverhampton","706779","Re-Entry Project","7554","120.00","TPP - Alternative Provision of Education","130215397","11/05/2018","Looked After Children","Pupil Premium","R5037"
"Wolverhampton City Council","http://opendatacommunities.org/id/metropolitan-district-council/wolverhampton","706779","Re-Entry Project","7690","3,358.08","TPP - Alternative Provision of Education","130217117","23/05/2018","Specialist Support","Alternative Provision","R5037"
"Wolverhampton City Council","http://opendatacommunities.org/id/metropolitan-district-council/wolverhampton","706779","Re-Entry Project","7615","1,031.52","TPP - Alternative Provision of Education","130216649","21/05/2018","Specialist Support","Alternative Provision","R5037"
"Wolverhampton City Council","http://opendatacommunities.org/id/metropolitan-district-council/wolverhampton","706779","Re-Entry Project","7606","839.52","TPP - Alternative Provision of Education","130216645","21/05/2018","Specialist Support","Alternative Provision","R5037"
"Wolverhampton City Council","http://opendatacommunities.org/id/metropolitan-district-council/wolverhampton","706779","Re-Entry Project","7627","924.00","TPP - Alternative Provision of Education","130216000","18/05/2018","Special Educational Needs","SEN Education OOC","R5037"
"Wolverhampton City Council","http://opendatacommunities.org/id/metropolitan-district-council/wolverhampton","706779","Re-Entry Project","7613","699.60","TPP - Alternative Provision of Education","130216648","21/05/2018","Specialist Support","Alternative Provision","R5037"
"Wolverhampton City Council","http://opendatacommunities.org/id/metropolitan-district-council/wolverhampton","706779","Re-Entry Project","7624","1,031.52","TPP - Alternative Provision of Education","130216652","21/05/2018","Specialist Support","Alternative Provision","R5037"
"Wolverhampton City Council","http://opendatacommunities.org/id/metropolitan-district-council/wolverhampton","706779","Re-Entry Project","7604","559.68","TPP - Alternative Provision of Education","130216644","21/05/2018","Specialist Support","Alternative Provision","R5037"
"Wolverhampton City Council","http://opendatacommunities.org/id/metropolitan-district-council/wolverhampton","706781","Rees Page Solicitors","M4821-CourtFee","215.00","Services - Professional Fees","190455748","11/05/2018","Legal Services","Centralised External Legal Costs","R4400"
"Wolverhampton City Council","http://opendatacommunities.org/id/metropolitan-district-council/wolverhampton","706781","Rees Page Solicitors","M4821","242.46","Services - Professional Fees","190455747","11/05/2018","Legal Services","Centralised External Legal Costs","R4400"
"Wolverhampton City Council","http://opendatacommunities.org/id/metropolitan-district-council/wolverhampton","706805","Respond Group Limited Dba Aptean","RI6018-701431","1,269.99","Computing - Repair and Maint","130213980","16/05/2018","Safeguarding","Head of Service Quality and Safeguarding","R4533"
"Wolverhampton City Council","http://opendatacommunities.org/id/metropolitan-district-council/wolverhampton","706856","Rigby Taylor Limited","RSIN0252792","1,840.00","Materials","130211612","16/05/2018","Environmental Maintenance","Ground Maintenance East","R4007"
"Wolverhampton City Council","http://opendatacommunities.org/id/metropolitan-district-council/wolverhampton","706856","Rigby Taylor Limited","RSIN0256329","979.00","Equipment - Purchase","130214459","23/05/2018","Environmental Maintenance","Ground Maintenance East","R4000"
"Wolverhampton City Council","http://opendatacommunities.org/id/metropolitan-district-council/wolverhampton","706856","Rigby Taylor Limited","RSIN0256329","40.00","Comms - Postage","130214459","23/05/2018","Environmental Maintenance","Ground Maintenance East","R4503"
"Wolverhampton City Council","http://opendatacommunities.org/id/metropolitan-district-council/wolverhampton","706861","Eurovia Contracting","5786","385,152.16","Construction and Conversion","130214815","23/05/2018","-","GF - Accessing Growth Fund","C1100"
"Wolverhampton City Council","http://opendatacommunities.org/id/metropolitan-district-council/wolverhampton","706868","Rmc Mechanical Services Limited","A22354","30,242.07","Construction and Conversion","130216511","23/05/2018","-","Boiler / Pipework Replacements","C1100"
"Wolverhampton City Council","http://opendatacommunities.org/id/metropolitan-district-council/wolverhampton","706868","Rmc Mechanical Services Limited","A22348","45.00","R&M - Departmental planned (external)","130216351","23/05/2018","Maintenance Programme","Centralised R&M","R2001"
"Wolverhampton City Council","http://opendatacommunities.org/id/metropolitan-district-council/wolverhampton","706868","Rmc Mechanical Services Limited","A22389A","375.81","R&M - Departmental planned (external)","130217292","30/05/2018","Maintenance Programme","Centralised R&M","R2001"
"Wolverhampton City Council","http://opendatacommunities.org/id/metropolitan-district-council/wolverhampton","706868","Rmc Mechanical Services Limited","A22229","1,427.17","R&M - Departmental planned (external)","130212966","11/05/2018","Facilities Management","Caretakers Community Centre","R2001"
"Wolverhampton City Council","http://opendatacommunities.org/id/metropolitan-district-council/wolverhampton","706868","Rmc Mechanical Services Limited","A22412","1,149.37","R&M - Departmental planned (external)","130217496","30/05/2018","Maintenance Programme","Centralised R&M","R2001"
"Wolverhampton City Council","http://opendatacommunities.org/id/metropolitan-district-council/wolverhampton","706868","Rmc Mechanical Services Limited","A22413","840.75","R&M - Departmental planned (external)","130217497","30/05/2018","Maintenance Programme","Centralised R&M","R2001"
"Wolverhampton City Council","http://opendatacommunities.org/id/metropolitan-district-council/wolverhampton","706868","Rmc Mechanical Services Limited","A22415","209.08","R&M - Departmental planned (external)","130217499","30/05/2018","Maintenance Programme","Centralised R&M","R2001"
"Wolverhampton City Council","http://opendatacommunities.org/id/metropolitan-district-council/wolverhampton","706868","Rmc Mechanical Services Limited","A22402","39.57","R&M - Departmental planned (external)","130217367","30/05/2018","Maintenance Programme","Centralised R&M","R2001"
"Wolverhampton City Council","http://opendatacommunities.org/id/metropolitan-district-council/wolverhampton","706868","Rmc Mechanical Services Limited","A22386","111.10","R&M - Departmental planned (external)","130217291","30/05/2018","Maintenance Programme","Centralised R&M","R2001"
"Wolverhampton City Council","http://opendatacommunities.org/id/metropolitan-district-council/wolverhampton","706868","Rmc Mechanical Services Limited","A22387A","487.20","R&M - Departmental planned (external)","130217127","30/05/2018","Maintenance Programme","Centralised R&M","R2001"
"Wolverhampton City Council","http://opendatacommunities.org/id/metropolitan-district-council/wolverhampton","706868","Rmc Mechanical Services Limited","A22408","3,790.05","R&M - Departmental planned (external)","130217372","30/05/2018","Maintenance Programme","Centralised R&M","R2001"
"Wolverhampton City Council","http://opendatacommunities.org/id/metropolitan-district-council/wolverhampton","706868","Rmc Mechanical Services Limited","A22221","91.38","R&M - Departmental planned (external)","130214155","02/05/2018","Maintenance Programme","Centralised R&M","R2001"
"Wolverhampton City Council","http://opendatacommunities.org/id/metropolitan-district-council/wolverhampton","706868","Rmc Mechanical Services Limited","20466","8,258.95","R&M - Departmental planned (external)","130207264","02/05/2018","Maintenance Programme","Centralised R&M","R2001"
"Wolverhampton City Council","http://opendatacommunities.org/id/metropolitan-district-council/wolverhampton","706868","Rmc Mechanical Services Limited","A22266","115.80","R&M - Departmental planned (external)","130214157","02/05/2018","Facilities Management","Magistrates","R2001"
"Wolverhampton City Council","http://opendatacommunities.org/id/metropolitan-district-council/wolverhampton","706868","Rmc Mechanical Services Limited","A22101","3,080.75","R&M - Departmental planned (external)","130210917","02/05/2018","Maintenance Programme","Centralised R&M","R2001"
"Wolverhampton City Council","http://opendatacommunities.org/id/metropolitan-district-council/wolverhampton","706868","Rmc Mechanical Services Limited","A22261","2,777.52","R&M - Departmental planned (external)","130213850","09/05/2018","Maintenance Programme","Centralised R&M","R2001"
"Wolverhampton City Council","http://opendatacommunities.org/id/metropolitan-district-council/wolverhampton","706868","Rmc Mechanical Services Limited","A21970A","643.50","R&M - Departmental planned (external)","130215399","09/05/2018","Adult Education","College of Further Education","R2001"
"Wolverhampton City Council","http://opendatacommunities.org/id/metropolitan-district-council/wolverhampton","706868","Rmc Mechanical Services Limited","A22315","111.10","R&M - Departmental planned (external)","130215403","09/05/2018","Facilities Management","Management of Vacant Properties","R2001"
"Wolverhampton City Council","http://opendatacommunities.org/id/metropolitan-district-council/wolverhampton","706868","Rmc Mechanical Services Limited","A22295","1,704.10","R&M - Departmental planned (external)","130215103","11/05/2018","Maintenance Programme","Centralised R&M","R2001"
"Wolverhampton City Council","http://opendatacommunities.org/id/metropolitan-district-council/wolverhampton","706868","Rmc Mechanical Services Limited","A22360","4,108.00","R&M - Departmental planned (external)","130216708","25/05/2018","Facilities Management","Hickman Avenue Depot","R2001"
"Wolverhampton City Council","http://opendatacommunities.org/id/metropolitan-district-council/wolverhampton","706868","Rmc Mechanical Services Limited","A22330","236.88","R&M - Departmental planned (external)","130216125","25/05/2018","Maintenance Programme","Centralised R&M","R2001"
"Wolverhampton City Council","http://opendatacommunities.org/id/metropolitan-district-council/wolverhampton","706868","Rmc Mechanical Services Limited","A22314","483.86","R&M - Departmental planned (external)","130215402","16/05/2018","Facilities Management","Caretakers Community Centre","R2001"
"Wolverhampton City Council","http://opendatacommunities.org/id/metropolitan-district-council/wolverhampton","706868","Rmc Mechanical Services Limited","A22296","1,750.85","R&M - Departmental planned (external)","130214938","09/05/2018","Maintenance Programme","Centralised R&M","R2001"
"Wolverhampton City Council","http://opendatacommunities.org/id/metropolitan-district-council/wolverhampton","706868","Rmc Mechanical Services Limited","A22361","5,200.00","R&M - Departmental planned (external)","130216709","25/05/2018","Maintenance Programme","Centralised R&M","R2001"
"Wolverhampton City Council","http://opendatacommunities.org/id/metropolitan-district-council/wolverhampton","706868","Rmc Mechanical Services Limited","A22356","111.10","R&M - Departmental planned (external)","130216512","25/05/2018","Maintenance Programme","Centralised R&M","R2001"
"Wolverhampton City Council","http://opendatacommunities.org/id/metropolitan-district-council/wolverhampton","706868","Rmc Mechanical Services Limited","A22353","498.75","R&M - Departmental planned (external)","130216510","23/05/2018","Maintenance Programme","Centralised R&M","R2001"
"Wolverhampton City Council","http://opendatacommunities.org/id/metropolitan-district-council/wolverhampton","706868","Rmc Mechanical Services Limited","A22350","55.55","R&M - Departmental planned (external)","130216507","23/05/2018","Bereavement Services","Crematorium","R2001"
"Wolverhampton City Council","http://opendatacommunities.org/id/metropolitan-district-council/wolverhampton","706868","Rmc Mechanical Services Limited","A22347","564.07","R&M - Departmental planned (external)","130216350","23/05/2018","Maintenance Programme","Centralised R&M","R2001"
"Wolverhampton City Council","http://opendatacommunities.org/id/metropolitan-district-council/wolverhampton","706868","Rmc Mechanical Services Limited","A22347","1.74","R&M - Departmental planned (external)","130216350","23/05/2018","Maintenance Programme","Centralised R&M","R2001"
"Wolverhampton City Council","http://opendatacommunities.org/id/metropolitan-district-council/wolverhampton","706868","Rmc Mechanical Services Limited","A22347","113.33","R&M - Departmental planned (external)","130216350","23/05/2018","Maintenance Programme","Centralised R&M","R2001"
"Wolverhampton City Council","http://opendatacommunities.org/id/metropolitan-district-council/wolverhampton","706868","Rmc Mechanical Services Limited","A22390","160.55","R&M - Departmental planned (external)","130217129","30/05/2018","Maintenance Programme","Centralised R&M","R2001"
"Wolverhampton City Council","http://opendatacommunities.org/id/metropolitan-district-council/wolverhampton","706868","Rmc Mechanical Services Limited","A22411","269.64","R&M - Departmental planned (external)","130217495","30/05/2018","Maintenance Programme","Centralised R&M","R2001"
"Wolverhampton City Council","http://opendatacommunities.org/id/metropolitan-district-council/wolverhampton","706868","Rmc Mechanical Services Limited","A22414","30.00","R&M - Departmental planned (external)","130217498","30/05/2018","Maintenance Programme","Centralised R&M","R2001"
"Wolverhampton City Council","http://opendatacommunities.org/id/metropolitan-district-council/wolverhampton","706868","Rmc Mechanical Services Limited","A22316","852.05","R&M - Departmental planned (external)","130215404","11/05/2018","Maintenance Programme","Centralised R&M","R2001"
"Wolverhampton City Council","http://opendatacommunities.org/id/metropolitan-district-council/wolverhampton","706868","Rmc Mechanical Services Limited","A22368","158.28","R&M - Departmental planned (external)","130216957","30/05/2018","Adult Education","College of Further Education","R2001"
"Wolverhampton City Council","http://opendatacommunities.org/id/metropolitan-district-council/wolverhampton","706868","Rmc Mechanical Services Limited","A22391","1,657.32","R&M - Departmental planned (external)","130217293","30/05/2018","Maintenance Programme","Centralised R&M","R2001"
"Wolverhampton City Council","http://opendatacommunities.org/id/metropolitan-district-council/wolverhampton","706868","Rmc Mechanical Services Limited","A22384","567.42","R&M - Departmental planned (external)","130217125","30/05/2018","Maintenance Programme","Centralised R&M","R2001"
"Wolverhampton City Council","http://opendatacommunities.org/id/metropolitan-district-council/wolverhampton","706868","Rmc Mechanical Services Limited","A22167","30,000.00","Construction and Conversion","130211619","02/05/2018","-","Boiler / Pipework Replacements","C1100"
"Wolverhampton City Council","http://opendatacommunities.org/id/metropolitan-district-council/wolverhampton","706868","Rmc Mechanical Services Limited","A22269","86.49","R&M - Departmental planned (external)","130214160","02/05/2018","Maintenance Programme","Centralised R&M","R2001"
"Wolverhampton City Council","http://opendatacommunities.org/id/metropolitan-district-council/wolverhampton","706868","Rmc Mechanical Services Limited","A22101CR","-398.25","R&M - Departmental planned (external)","130211139","02/05/2018","Maintenance Programme","Centralised R&M","R2001"
"Wolverhampton City Council","http://opendatacommunities.org/id/metropolitan-district-council/wolverhampton","706868","Rmc Mechanical Services Limited","A22210","50,000.00","Construction and Conversion","130212651","04/05/2018","-","Capital Maintenance - Heating Pipework Upgrades","C1100"
"Wolverhampton City Council","http://opendatacommunities.org/id/metropolitan-district-council/wolverhampton","706868","Rmc Mechanical Services Limited","A22241","111.10","R&M - Departmental planned (external)","130212969","04/05/2018","Maintenance Programme","Centralised R&M","R2001"
"Wolverhampton City Council","http://opendatacommunities.org/id/metropolitan-district-council/wolverhampton","706868","Rmc Mechanical Services Limited","A22359","5,895.45","R&M - Departmental planned (external)","130216707","23/05/2018","Maintenance Programme","Centralised R&M","R2001"
"Wolverhampton City Council","http://opendatacommunities.org/id/metropolitan-district-council/wolverhampton","706868","Rmc Mechanical Services Limited","A22346","124.06","R&M - Departmental planned (external)","130216349","23/05/2018","Maintenance Programme","Centralised R&M","R2001"
"Wolverhampton City Council","http://opendatacommunities.org/id/metropolitan-district-council/wolverhampton","706868","Rmc Mechanical Services Limited","A22409","391.32","R&M - Departmental planned (external)","130217493","30/05/2018","Maintenance Programme","Centralised R&M","R2001"
"Wolverhampton City Council","http://opendatacommunities.org/id/metropolitan-district-council/wolverhampton","706868","Rmc Mechanical Services Limited","A22298","59.36","R&M - Departmental planned (external)","130215104","11/05/2018","Maintenance Programme","Centralised R&M","R2001"
"Wolverhampton City Council","http://opendatacommunities.org/id/metropolitan-district-council/wolverhampton","706868","Rmc Mechanical Services Limited","A22365","25,000.00","Construction and Conversion","130216955","30/05/2018","-","Capital Maintenance - Heating Pipework Upgrades","C1100"
"Wolverhampton City Council","http://opendatacommunities.org/id/metropolitan-district-council/wolverhampton","706868","Rmc Mechanical Services Limited","A22416","858.18","R&M - Departmental planned (external)","130217500","30/05/2018","Maintenance Programme","Centralised R&M","R2001"
"Wolverhampton City Council","http://opendatacommunities.org/id/metropolitan-district-council/wolverhampton","706868","Rmc Mechanical Services Limited","A22417","1,622.00","R&M - Departmental planned (external)","130217501","30/05/2018","Maintenance Programme","Centralised R&M","R2001"
"Wolverhampton City Council","http://opendatacommunities.org/id/metropolitan-district-council/wolverhampton","706868","Rmc Mechanical Services Limited","A22410","489.53","R&M - Departmental planned (external)","130217494","30/05/2018","Maintenance Programme","Centralised R&M","R2001"
"Wolverhampton City Council","http://opendatacommunities.org/id/metropolitan-district-council/wolverhampton","706868","Rmc Mechanical Services Limited","A22385","83.33","R&M - Departmental planned (external)","130217126","30/05/2018","Maintenance Programme","Centralised R&M","R2001"
"Wolverhampton City Council","http://opendatacommunities.org/id/metropolitan-district-council/wolverhampton","706868","Rmc Mechanical Services Limited","A22388A","45.00","R&M - Departmental planned (external)","130217128","30/05/2018","Maintenance Programme","Centralised R&M","R2001"
"Wolverhampton City Council","http://opendatacommunities.org/id/metropolitan-district-council/wolverhampton","706868","Rmc Mechanical Services Limited","A22405","224.99","R&M - Departmental planned (external)","130217370","30/05/2018","Maintenance Programme","Centralised R&M","R2001"
"Wolverhampton City Council","http://opendatacommunities.org/id/metropolitan-district-council/wolverhampton","706868","Rmc Mechanical Services Limited","A22419","358.18","R&M - Departmental planned (external)","130217503","30/05/2018","Public Service Reform","Local Government Elections","R2001"
"Wolverhampton City Council","http://opendatacommunities.org/id/metropolitan-district-council/wolverhampton","706868","Rmc Mechanical Services Limited","A22270","1,136.10","R&M - Departmental planned (external)","130214161","02/05/2018","Maintenance Programme","Centralised R&M","R2001"
"Wolverhampton City Council","http://opendatacommunities.org/id/metropolitan-district-council/wolverhampton","706868","Rmc Mechanical Services Limited","A22264","98.93","R&M - Departmental planned (external)","130214156","02/05/2018","Maintenance Programme","Centralised R&M","R2001"
"Wolverhampton City Council","http://opendatacommunities.org/id/metropolitan-district-council/wolverhampton","706868","Rmc Mechanical Services Limited","20468","7,900.78","R&M - Departmental planned (external)","130211833","02/05/2018","Maintenance Programme","Centralised R&M","R2001"
"Wolverhampton City Council","http://opendatacommunities.org/id/metropolitan-district-council/wolverhampton","706868","Rmc Mechanical Services Limited","A22255","202.49","R&M - Departmental planned (external)","130213557","04/05/2018","Maintenance Programme","Centralised R&M","R2001"
"Wolverhampton City Council","http://opendatacommunities.org/id/metropolitan-district-council/wolverhampton","706868","Rmc Mechanical Services Limited","A22072A","3,000.00","R&M - Departmental planned (external)","130215400","11/05/2018","Maintenance Programme","Centralised R&M","R2001"
"Wolverhampton City Council","http://opendatacommunities.org/id/metropolitan-district-council/wolverhampton","706868","Rmc Mechanical Services Limited","A22297","694.71","R&M - Departmental planned (external)","130214939","09/05/2018","Maintenance Programme","Centralised R&M","R2001"
"Wolverhampton City Council","http://opendatacommunities.org/id/metropolitan-district-council/wolverhampton","706868","Rmc Mechanical Services Limited","A22357","65.34","R&M - Departmental planned (external)","130217290","25/05/2018","Facilities Management","Parkfields Office Accomodation","R2001"
"Wolverhampton City Council","http://opendatacommunities.org/id/metropolitan-district-council/wolverhampton","706868","Rmc Mechanical Services Limited","A22311","111.10","R&M - Departmental planned (external)","130215265","09/05/2018","Facilities Management","Hickman Avenue Depot","R2001"
"Wolverhampton City Council","http://opendatacommunities.org/id/metropolitan-district-council/wolverhampton","706868","Rmc Mechanical Services Limited","A22301","412.12","R&M - Departmental planned (external)","130215106","09/05/2018","Maintenance Programme","Centralised R&M","R2001"
"Wolverhampton City Council","http://opendatacommunities.org/id/metropolitan-district-council/wolverhampton","706868","Rmc Mechanical Services Limited","A22310","192.84","R&M - Departmental planned (external)","130215264","16/05/2018","Facilities Management","Culwell Street Depot","R2001"
"Wolverhampton City Council","http://opendatacommunities.org/id/metropolitan-district-council/wolverhampton","706868","Rmc Mechanical Services Limited","A22317","527.14","R&M - Departmental planned (external)","130215405","16/05/2018","Maintenance Programme","Centralised R&M","R2001"
"Wolverhampton City Council","http://opendatacommunities.org/id/metropolitan-district-council/wolverhampton","706868","Rmc Mechanical Services Limited","A22313","62.55","R&M - Departmental planned (external)","130215401","09/05/2018","Facilities Management","Caretakers Community Centre","R2001"
"Wolverhampton City Council","http://opendatacommunities.org/id/metropolitan-district-council/wolverhampton","706868","Rmc Mechanical Services Limited","A22309","739.64","R&M - Departmental planned (external)","130215263","09/05/2018","Facilities Management","Culwell Street Depot","R2001"
"Wolverhampton City Council","http://opendatacommunities.org/id/metropolitan-district-council/wolverhampton","706868","Rmc Mechanical Services Limited","A22170","333.30","R&M - Departmental planned (external)","130211621","09/05/2018","Maintenance Programme","Centralised R&M","R2001"
"Wolverhampton City Council","http://opendatacommunities.org/id/metropolitan-district-council/wolverhampton","706868","Rmc Mechanical Services Limited","A22358","65.34","R&M - Departmental planned (external)","130217120","25/05/2018","Facilities Management","Bilston Town Hall","R2001"
"Wolverhampton City Council","http://opendatacommunities.org/id/metropolitan-district-council/wolverhampton","706868","Rmc Mechanical Services Limited","A22302","39.57","R&M - Departmental planned (external)","130215107","16/05/2018","Maintenance Programme","Centralised R&M","R2001"
"Wolverhampton City Council","http://opendatacommunities.org/id/metropolitan-district-council/wolverhampton","706868","Rmc Mechanical Services Limited","A22329","2,780.50","Construction and Conversion","130216124","18/05/2018","-","ICT General Programme","C1100"
"Wolverhampton City Council","http://opendatacommunities.org/id/metropolitan-district-council/wolverhampton","706868","Rmc Mechanical Services Limited","A22352","1,054.50","R&M - Departmental planned (external)","130216509","23/05/2018","Maintenance Programme","Centralised R&M","R2001"
"Wolverhampton City Council","http://opendatacommunities.org/id/metropolitan-district-council/wolverhampton","706868","Rmc Mechanical Services Limited","A22404","445.33","R&M - Departmental planned (external)","130217369","30/05/2018","Maintenance Programme","Centralised R&M","R2001"
"Wolverhampton City Council","http://opendatacommunities.org/id/metropolitan-district-council/wolverhampton","706868","Rmc Mechanical Services Limited","A22351","546.84","R&M - Departmental planned (external)","130216508","23/05/2018","Facilities Management","Magistrates","R2001"
"Wolverhampton City Council","http://opendatacommunities.org/id/metropolitan-district-council/wolverhampton","706868","Rmc Mechanical Services Limited","A22349","97.20","R&M - Departmental planned (external)","130216352","23/05/2018","Maintenance Programme","Centralised R&M","R2001"
"Wolverhampton City Council","http://opendatacommunities.org/id/metropolitan-district-council/wolverhampton","706868","Rmc Mechanical Services Limited","A22300","98.93","R&M - Departmental planned (external)","130215105","11/05/2018","Maintenance Programme","Centralised R&M","R2001"
"Wolverhampton City Council","http://opendatacommunities.org/id/metropolitan-district-council/wolverhampton","706868","Rmc Mechanical Services Limited","A22259","14.70","R&M - Departmental planned (external)","130213737","04/05/2018","Maintenance Programme","Centralised R&M","R2001"
"Wolverhampton City Council","http://opendatacommunities.org/id/metropolitan-district-council/wolverhampton","706868","Rmc Mechanical Services Limited","A22259","309.30","R&M - Departmental planned (external)","130213737","04/05/2018","Maintenance Programme","Centralised R&M","R2001"
"Wolverhampton City Council","http://opendatacommunities.org/id/metropolitan-district-council/wolverhampton","706868","Rmc Mechanical Services Limited","A22376","520.00","R&M - Departmental planned (external)","130217122","30/05/2018","Specialist Support","Head of Service Specialist Intensive Support Service","R2001"
"Wolverhampton City Council","http://opendatacommunities.org/id/metropolitan-district-council/wolverhampton","706868","Rmc Mechanical Services Limited","A22366","7,378.00","R&M - Departmental planned (external)","130216956","30/05/2018","Facilities Management","Magistrates","R2001"
"Wolverhampton City Council","http://opendatacommunities.org/id/metropolitan-district-council/wolverhampton","706868","Rmc Mechanical Services Limited","A22369","98.93","R&M - Departmental planned (external)","130217121","30/05/2018","Facilities Management","Magistrates","R2001"
"Wolverhampton City Council","http://opendatacommunities.org/id/metropolitan-district-council/wolverhampton","706868","Rmc Mechanical Services Limited","A22418","1,642.02","R&M - Departmental planned (external)","130217502","30/05/2018","Maintenance Programme","Centralised R&M","R2001"
"Wolverhampton City Council","http://opendatacommunities.org/id/metropolitan-district-council/wolverhampton","706868","Rmc Mechanical Services Limited","A22382","79.14","R&M - Departmental planned (external)","130217123","30/05/2018","Maintenance Programme","Centralised R&M","R2001"
"Wolverhampton City Council","http://opendatacommunities.org/id/metropolitan-district-council/wolverhampton","706868","Rmc Mechanical Services Limited","A22383","237.85","R&M - Departmental planned (external)","130217124","30/05/2018","Maintenance Programme","Centralised R&M","R2001"
"Wolverhampton City Council","http://opendatacommunities.org/id/metropolitan-district-council/wolverhampton","706868","Rmc Mechanical Services Limited","A22403","898.23","R&M - Departmental planned (external)","130217368","30/05/2018","Maintenance Programme","Centralised R&M","R2001"
"Wolverhampton City Council","http://opendatacommunities.org/id/metropolitan-district-council/wolverhampton","706868","Rmc Mechanical Services Limited","A22407","154.28","R&M - Departmental planned (external)","130217371","30/05/2018","Maintenance Programme","Centralised R&M","R2001"
"Wolverhampton City Council","http://opendatacommunities.org/id/metropolitan-district-council/wolverhampton","706868","Rmc Mechanical Services Limited","A22268","268.41","R&M - Departmental planned (external)","130214159","02/05/2018","Maintenance Programme","Centralised R&M","R2001"
"Wolverhampton City Council","http://opendatacommunities.org/id/metropolitan-district-council/wolverhampton","706868","Rmc Mechanical Services Limited","A22047","3,584.25","R&M - Departmental planned (external)","130210042","02/05/2018","Maintenance Programme","Centralised R&M","R2001"
"Wolverhampton City Council","http://opendatacommunities.org/id/metropolitan-district-council/wolverhampton","706868","Rmc Mechanical Services Limited","A22267","930.00","R&M - Departmental planned (external)","130214158","02/05/2018","Maintenance Programme","Centralised R&M","R2001"
"Wolverhampton City Council","http://opendatacommunities.org/id/metropolitan-district-council/wolverhampton","706911","Rospa Enterprises Limited","1034437","495.00","Training Expenses","130213205","09/05/2018","Public Service Reform","Centralised Training","R1650"
"Wolverhampton City Council","http://opendatacommunities.org/id/metropolitan-district-council/wolverhampton","706911","Rospa Enterprises Limited","1034436","495.00","Training Expenses","130213204","09/05/2018","Public Service Reform","Centralised Training","R1650"
"Wolverhampton City Council","http://opendatacommunities.org/id/metropolitan-district-council/wolverhampton","706935","Royal Mail","9056376475","364.16","Comms - Postage","130212972","04/05/2018","Strategic Director Place","Business Manager - Place","R4503"
"Wolverhampton City Council","http://opendatacommunities.org/id/metropolitan-district-council/wolverhampton","706936","Royal Mail Group PLC","905497197","210.96","Comms - Postage","190463627","30/05/2018","Public Service Reform","Electoral Registration","R4503"
"Wolverhampton City Council","http://opendatacommunities.org/id/metropolitan-district-council/wolverhampton","706936","Royal Mail Group PLC","9056509511","2,201.26","Comms - Postage","190463629","30/05/2018","Public Service Reform","Local Government Elections","R4503"
"Wolverhampton City Council","http://opendatacommunities.org/id/metropolitan-district-council/wolverhampton","706936","Royal Mail Group PLC","9056401836","1,216.67","Comms - Postage","130213984","11/05/2018","Revenues & Benefits","Revenues","R4503"
"Wolverhampton City Council","http://opendatacommunities.org/id/metropolitan-district-council/wolverhampton","706936","Royal Mail Group PLC","9056414046","0.48","Comms - Postage","130213852","11/05/2018","Catering","Education Catering - General Overheads","R4503"
"Wolverhampton City Council","http://opendatacommunities.org/id/metropolitan-district-council/wolverhampton","706936","Royal Mail Group PLC","9056414046","0.48","Comms - Postage","130213852","11/05/2018","Cleaning","Cleaning of Buildings - General","R4503"
"Wolverhampton City Council","http://opendatacommunities.org/id/metropolitan-district-council/wolverhampton","706936","Royal Mail Group PLC","9056427137b","3.60","Comms - Postage","190463632","30/05/2018","Public Service Reform","Local Government Elections","R4503"
"Wolverhampton City Council","http://opendatacommunities.org/id/metropolitan-district-council/wolverhampton","706936","Royal Mail Group PLC","9056509650","2,009.98","Comms - Postage","130216246","30/05/2018","ICTS","Document Centre - General","R4503"
"Wolverhampton City Council","http://opendatacommunities.org/id/metropolitan-district-council/wolverhampton","706936","Royal Mail Group PLC","9055051997","1,270.99","Comms - Postage","190455765","11/05/2018","Public Service Reform","General Elections","R4503"
"Wolverhampton City Council","http://opendatacommunities.org/id/metropolitan-district-council/wolverhampton","706936","Royal Mail Group PLC","9056502961","127.24","Comms - Postage","190463628","30/05/2018","Public Service Reform","Local Government Elections","R4503"
"Wolverhampton City Council","http://opendatacommunities.org/id/metropolitan-district-council/wolverhampton","706936","Royal Mail Group PLC","9056427137a","9,589.56","Comms - Postage","190463631","30/05/2018","Public Service Reform","Local Government Elections","R4503"
"Wolverhampton City Council","http://opendatacommunities.org/id/metropolitan-district-council/wolverhampton","706936","Royal Mail Group PLC","9056402885","1,385.49","Comms - Postage","130213985","11/05/2018","Revenues & Benefits","Revenues","R4503"
"Wolverhampton City Council","http://opendatacommunities.org/id/metropolitan-district-council/wolverhampton","706936","Royal Mail Group PLC","9056466977","3,276.01","Comms - Postage","190463633","30/05/2018","Public Service Reform","Local Government Elections","R4503"
"Wolverhampton City Council","http://opendatacommunities.org/id/metropolitan-district-council/wolverhampton","706936","Royal Mail Group PLC","9056554636","1,371.80","Comms - Postage","190463630","30/05/2018","Public Service Reform","Local Government Elections","R4503"
"Wolverhampton City Council","http://opendatacommunities.org/id/metropolitan-district-council/wolverhampton","706936","Royal Mail Group PLC","9056388640","1,348.40","Comms - Postage","130213206","18/05/2018","ICTS","Document Centre - General","R4503"
"Wolverhampton City Council","http://opendatacommunities.org/id/metropolitan-district-council/wolverhampton","706936","Royal Mail Group PLC","9055009379","27.41","Comms - Postage","190455764","11/05/2018","Public Service Reform","Electoral Registration","R4503"
"Wolverhampton City Council","http://opendatacommunities.org/id/metropolitan-district-council/wolverhampton","706936","Royal Mail Group PLC","9055064526","1,294.28","Comms - Postage","190455766","11/05/2018","Public Service Reform","Electoral Registration","R4503"
"Wolverhampton City Council","http://opendatacommunities.org/id/metropolitan-district-council/wolverhampton","706942","Royal Society For Public Health-Rsph","EXM1000035222","100.00","Subscriptions","130215406","09/05/2018","Adult Education","Direct Delivery Team ( L.& D.)","R4701"
"Wolverhampton City Council","http://opendatacommunities.org/id/metropolitan-district-council/wolverhampton","706943","Royal Wolverhampton  Hospitals NHS Trust","0000216259","18,184.00","TPP - Public Health Contracts","130212291","16/05/2018","Contracts","LA Role in Health Protection","R5060"
"Wolverhampton City Council","http://opendatacommunities.org/id/metropolitan-district-council/wolverhampton","706987","S B Waste Management & Recycling Limited","111258","1,880.00","Waste Management","130216958","23/05/2018","Highways Maintenance","Patching","R2703"
"Wolverhampton City Council","http://opendatacommunities.org/id/metropolitan-district-council/wolverhampton","706987","S B Waste Management & Recycling Limited","111257","60.80","TPP - Waste Disposal","130212974","18/05/2018","Highways Maintenance","Patching","R5003"
"Wolverhampton City Council","http://opendatacommunities.org/id/metropolitan-district-council/wolverhampton","706987","S B Waste Management & Recycling Limited","112230","0.02","Waste Management","130215408","25/05/2018","Highways Maintenance","Patching","R2703"
"Wolverhampton City Council","http://opendatacommunities.org/id/metropolitan-district-council/wolverhampton","706987","S B Waste Management & Recycling Limited","112230","0.02","Waste Management","130215408","25/05/2018","Highways Maintenance","Patching","R2703"
"Wolverhampton City Council","http://opendatacommunities.org/id/metropolitan-district-council/wolverhampton","706987","S B Waste Management & Recycling Limited","112230","160.96","Waste Management","130215408","25/05/2018","Highways Maintenance","Patching","R2703"
"Wolverhampton City Council","http://opendatacommunities.org/id/metropolitan-district-council/wolverhampton","706987","S B Waste Management & Recycling Limited","111259","158.00","TPP - Waste Disposal","130212975","04/05/2018","Highways Maintenance","Patching","R5003"
"Wolverhampton City Council","http://opendatacommunities.org/id/metropolitan-district-council/wolverhampton","707008","S M  Builders","16/0104/DFGa","15,284.20","Grants paid out to other organisations","190452559","02/05/2018","-","Disabled Facilities Grants","C5011"
"Wolverhampton City Council","http://opendatacommunities.org/id/metropolitan-district-council/wolverhampton","707023","S. & J. Pritchard Landscapes Limited","212","280.00","R&M - Departmental response (external)","130215574","18/05/2018","Environmental Maintenance","Parks - East Area Management","R2003"
"Wolverhampton City Council","http://opendatacommunities.org/id/metropolitan-district-council/wolverhampton","707023","S. & J. Pritchard Landscapes Limited","218","2,125.00","R&M - Departmental response (external)","130216358","23/05/2018","Environmental Maintenance","Parks - South West Area Management","R2003"
"Wolverhampton City Council","http://opendatacommunities.org/id/metropolitan-district-council/wolverhampton","707023","S. & J. Pritchard Landscapes Limited","204","910.00","R&M - Departmental response (external)","130214298","02/05/2018","Environmental Maintenance","Parks - South West Area Management","R2003"
"Wolverhampton City Council","http://opendatacommunities.org/id/metropolitan-district-council/wolverhampton","707023","S. & J. Pritchard Landscapes Limited","205","85.00","R&M - Departmental response (external)","130214635","04/05/2018","Environmental Maintenance","Parks - South West Area Management","R2003"
"Wolverhampton City Council","http://opendatacommunities.org/id/metropolitan-district-council/wolverhampton","707023","S. & J. Pritchard Landscapes Limited","209","85.00","R&M - Departmental response (external)","130214941","09/05/2018","Environmental Maintenance","Parks - East Area Management","R2003"
"Wolverhampton City Council","http://opendatacommunities.org/id/metropolitan-district-council/wolverhampton","707023","S. & J. Pritchard Landscapes Limited","213","225.00","R&M - Departmental response (external)","130215575","16/05/2018","Environmental Maintenance","Parks - South West Area Management","R2003"
"Wolverhampton City Council","http://opendatacommunities.org/id/metropolitan-district-council/wolverhampton","707023","S. & J. Pritchard Landscapes Limited","214","30.00","R&M - Departmental response (external)","130216354","23/05/2018","Environmental Maintenance","Parks - South West Area Management","R2003"
"Wolverhampton City Council","http://opendatacommunities.org/id/metropolitan-district-council/wolverhampton","707023","S. & J. Pritchard Landscapes Limited","202","2,230.00","R&M - Departmental response (external)","130214296","02/05/2018","Environmental Maintenance","Parks - East Area Management","R2003"
"Wolverhampton City Council","http://opendatacommunities.org/id/metropolitan-district-council/wolverhampton","707023","S. & J. Pritchard Landscapes Limited","206","185.00","R&M - Departmental response (external)","130214636","04/05/2018","Environmental Maintenance","Parks - East Area Management","R2003"
"Wolverhampton City Council","http://opendatacommunities.org/id/metropolitan-district-council/wolverhampton","707023","S. & J. Pritchard Landscapes Limited","211","425.00","R&M - Departmental response (external)","130215480","18/05/2018","Environmental Maintenance","Parks - East Area Management","R2003"
"Wolverhampton City Council","http://opendatacommunities.org/id/metropolitan-district-council/wolverhampton","707023","S. & J. Pritchard Landscapes Limited","215","125.00","R&M - Departmental response (external)","130216355","23/05/2018","Environmental Maintenance","Parks - South West Area Management","R2003"
"Wolverhampton City Council","http://opendatacommunities.org/id/metropolitan-district-council/wolverhampton","707023","S. & J. Pritchard Landscapes Limited","217","165.00","R&M - Departmental response (external)","130216357","23/05/2018","Environmental Maintenance","Parks - South West Area Management","R2003"
"Wolverhampton City Council","http://opendatacommunities.org/id/metropolitan-district-council/wolverhampton","707023","S. & J. Pritchard Landscapes Limited","220","175.00","R&M - Departmental response (external)","130217130","30/05/2018","Environmental Maintenance","Parks - East Area Management","R2003"
"Wolverhampton City Council","http://opendatacommunities.org/id/metropolitan-district-council/wolverhampton","707023","S. & J. Pritchard Landscapes Limited","207","185.00","R&M - Departmental response (external)","130214637","04/05/2018","Environmental Maintenance","Parks - East Area Management","R2003"
"Wolverhampton City Council","http://opendatacommunities.org/id/metropolitan-district-council/wolverhampton","707023","S. & J. Pritchard Landscapes Limited","203","145.00","R&M - Departmental response (external)","130214297","02/05/2018","Environmental Maintenance","Parks - East Area Management","R2003"
"Wolverhampton City Council","http://opendatacommunities.org/id/metropolitan-district-council/wolverhampton","707023","S. & J. Pritchard Landscapes Limited","208","375.00","R&M - Departmental response (external)","130214940","18/05/2018","Environmental Maintenance","Parks - East Area Management","R2003"
"Wolverhampton City Council","http://opendatacommunities.org/id/metropolitan-district-council/wolverhampton","707023","S. & J. Pritchard Landscapes Limited","221","345.00","R&M - Departmental response (external)","130217131","30/05/2018","Environmental Maintenance","Parks - South West Area Management","R2003"
"Wolverhampton City Council","http://opendatacommunities.org/id/metropolitan-district-council/wolverhampton","707023","S. & J. Pritchard Landscapes Limited","216","65.00","R&M - Departmental response (external)","130216356","23/05/2018","Environmental Maintenance","Parks - South West Area Management","R2003"
"Wolverhampton City Council","http://opendatacommunities.org/id/metropolitan-district-council/wolverhampton","707023","S. & J. Pritchard Landscapes Limited","219","1,580.00","R&M - Departmental response (external)","130216359","23/05/2018","Environmental Maintenance","Parks - South West Area Management","R2003"
"Wolverhampton City Council","http://opendatacommunities.org/id/metropolitan-district-council/wolverhampton","707023","S. & J. Pritchard Landscapes Limited","201","165.00","R&M - Departmental response (external)","130214162","02/05/2018","Environmental Maintenance","Parks - South West Area Management","R2003"
"Wolverhampton City Council","http://opendatacommunities.org/id/metropolitan-district-council/wolverhampton","707023","S. & J. Pritchard Landscapes Limited","210","225.00","R&M - Departmental response (external)","130214942","09/05/2018","Environmental Maintenance","Parks - East Area Management","R2003"
"Wolverhampton City Council","http://opendatacommunities.org/id/metropolitan-district-council/wolverhampton","707033","S.P. Chrimes","23321","245.00","Services - Professional Fees","130216247","16/05/2018","School Planning & Resources","Music Support Team","R4400"
"Wolverhampton City Council","http://opendatacommunities.org/id/metropolitan-district-council/wolverhampton","707034","S.S Gill - A. Singh & S.S.Gill","3AC017","15,750.00","Rent","130213987","02/05/2018","Visitor Economy","The Little Civic","R2200"
"Wolverhampton City Council","http://opendatacommunities.org/id/metropolitan-district-council/wolverhampton","707035","S.S. Sidhu","0465","173.20","Books","130216248","30/05/2018","Strategic Organisation Development","Reference Library","R4309"
"Wolverhampton City Council","http://opendatacommunities.org/id/metropolitan-district-council/wolverhampton","707035","S.S. Sidhu","0461","162.40","Books","130213365","02/05/2018","Strategic Organisation Development","Reference Library","R4309"
"Wolverhampton City Council","http://opendatacommunities.org/id/metropolitan-district-council/wolverhampton","707035","S.S. Sidhu","0464","170.70","Books","130215109","23/05/2018","Strategic Organisation Development","Reference Library","R4309"
"Wolverhampton City Council","http://opendatacommunities.org/id/metropolitan-district-council/wolverhampton","707035","S.S. Sidhu","0463","176.39","Books","130215108","23/05/2018","Strategic Organisation Development","Reference Library","R4309"
"Wolverhampton City Council","http://opendatacommunities.org/id/metropolitan-district-council/wolverhampton","707069","Compasss Minerals UK Ltd","468617","1,099.96","Materials","130212806","02/05/2018","Highways Maintenance","Winter Maintenance","R4007"
"Wolverhampton City Council","http://opendatacommunities.org/id/metropolitan-district-council/wolverhampton","707069","Compasss Minerals UK Ltd","468775","10,784.38","Materials","130213738","30/05/2018","Highways Maintenance","Winter Maintenance","R4007"
"Wolverhampton City Council","http://opendatacommunities.org/id/metropolitan-district-council/wolverhampton","707069","Compasss Minerals UK Ltd","468569","2,169.17","Materials","130212654","02/05/2018","Highways Maintenance","Winter Maintenance","R4007"
"Wolverhampton City Council","http://opendatacommunities.org/id/metropolitan-district-council/wolverhampton","707069","Compasss Minerals UK Ltd","468720","370.80","Materials","130213853","04/05/2018","Markets","Bilston Market and Licensed Operations","R4007"
"Wolverhampton City Council","http://opendatacommunities.org/id/metropolitan-district-council/wolverhampton","707077","Sanctuary Personnel Limited","INV00263258","44.00","Agency Staff","130209762","02/05/2018","Child Protection","MASH","R1100"
"Wolverhampton City Council","http://opendatacommunities.org/id/metropolitan-district-council/wolverhampton","707077","Sanctuary Personnel Limited","INV00263263","44.00","Agency Staff","130209767","02/05/2018","Child Protection","MASH","R1100"
"Wolverhampton City Council","http://opendatacommunities.org/id/metropolitan-district-council/wolverhampton","707077","Sanctuary Personnel Limited","INV00251628","1,185.00","Agency Staff","130213367","16/05/2018","Child Protection","MASH","R1100"
"Wolverhampton City Council","http://opendatacommunities.org/id/metropolitan-district-council/wolverhampton","707077","Sanctuary Personnel Limited","INV00251628","-1,185.00","Agency Staff","130213367","16/05/2018","Child Protection","MASH","R1100"
"Wolverhampton City Council","http://opendatacommunities.org/id/metropolitan-district-council/wolverhampton","707077","Sanctuary Personnel Limited","INV00251628","1,332.00","Agency Staff","130213367","16/05/2018","Child Protection","MASH","R1100"
"Wolverhampton City Council","http://opendatacommunities.org/id/metropolitan-district-council/wolverhampton","707077","Sanctuary Personnel Limited","INV00276488","1,424.50","Agency Staff","130213854","11/05/2018","Child Protection","MASH","R1100"
"Wolverhampton City Council","http://opendatacommunities.org/id/metropolitan-district-council/wolverhampton","707077","Sanctuary Personnel Limited","INV00263262","44.00","Agency Staff","130209766","02/05/2018","Child Protection","MASH","R1100"
"Wolverhampton City Council","http://opendatacommunities.org/id/metropolitan-district-council/wolverhampton","707077","Sanctuary Personnel Limited","INV00260092","36.00","Agency Staff","130213989","16/05/2018","Child Protection","MASH","R1100"
"Wolverhampton City Council","http://opendatacommunities.org/id/metropolitan-district-council/wolverhampton","707077","Sanctuary Personnel Limited","INV00263260","44.00","Agency Staff","130209764","02/05/2018","Child Protection","MASH","R1100"
"Wolverhampton City Council","http://opendatacommunities.org/id/metropolitan-district-council/wolverhampton","707077","Sanctuary Personnel Limited","INV00263259","44.00","Agency Staff","130209763","02/05/2018","Child Protection","MASH","R1100"
"Wolverhampton City Council","http://opendatacommunities.org/id/metropolitan-district-council/wolverhampton","707077","Sanctuary Personnel Limited","INV00263261","34.00","Agency Staff","130209765","02/05/2018","Child Protection","MASH","R1100"
"Wolverhampton City Council","http://opendatacommunities.org/id/metropolitan-district-council/wolverhampton","707077","Sanctuary Personnel Limited","INV00256185","1,443.00","Agency Staff","130213988","16/05/2018","Child Protection","MASH","R1100"
"Wolverhampton City Council","http://opendatacommunities.org/id/metropolitan-district-council/wolverhampton","707085","Sandwell Mbc","Refund super levies 17/18","3,774.16","Enhanced Pension","190454003","04/05/2018","Central Corporate Budgets","Local Government Reorganisation","R1301"
"Wolverhampton City Council","http://opendatacommunities.org/id/metropolitan-district-council/wolverhampton","707085","Sandwell Mbc","255001785","26,378.00","TPP - Payments to Local Authorities","130210620","04/05/2018","Special Educational Needs","SEN Education OOC","R5100"
"Wolverhampton City Council","http://opendatacommunities.org/id/metropolitan-district-council/wolverhampton","707085","Sandwell Mbc","255001800","10,590.45","Client Transport - SEN","130214638","02/05/2018","Special Educational Needs","Special - Transport","R3043"
"Wolverhampton City Council","http://opendatacommunities.org/id/metropolitan-district-council/wolverhampton","707085","Sandwell Mbc","255001801","19,521.45","Client Transport - SEN","130214639","02/05/2018","Special Educational Needs","Special - Transport","R3043"
"Wolverhampton City Council","http://opendatacommunities.org/id/metropolitan-district-council/wolverhampton","707088","Sandwich","1002","75.00","Cleaning Supplies and Materials","130213740","16/05/2018","Headstart","Headstart Phase 3","R2705"
"Wolverhampton City Council","http://opendatacommunities.org/id/metropolitan-district-council/wolverhampton","707088","Sandwich","2000","75.00","Equipment - Purchase","130216126","30/05/2018","Headstart","Headstart Hubs","R4000"
"Wolverhampton City Council","http://opendatacommunities.org/id/metropolitan-district-council/wolverhampton","707131","School Merit Stickers","248829","113.85","Equipment - Purchase","130216311","16/05/2018","Schools","St Paul�s Church of England (Aided) School","R4000"
"Wolverhampton City Council","http://opendatacommunities.org/id/metropolitan-district-council/wolverhampton","707164","Scribes Plus Limited","9846","985.00","Services - General Licences","130212276","02/05/2018","Bereavement Services","Crematorium","R4402"
"Wolverhampton City Council","http://opendatacommunities.org/id/metropolitan-district-council/wolverhampton","707164","Scribes Plus Limited","9850","337.00","Materials","130212655","09/05/2018","Bereavement Services","Crematorium","R4007"
"Wolverhampton City Council","http://opendatacommunities.org/id/metropolitan-district-council/wolverhampton","707164","Scribes Plus Limited","9858","102.00","Materials","130213567","16/05/2018","Bereavement Services","Crematorium","R4007"
"Wolverhampton City Council","http://opendatacommunities.org/id/metropolitan-district-council/wolverhampton","707176","Secom PLC","3393086","1,930.11","Equipment - Hire","130217132","25/05/2018","Visitor Economy","Bantock House Museum","R4001"
"Wolverhampton City Council","http://opendatacommunities.org/id/metropolitan-district-council/wolverhampton","707185","Security Plus Limited","670945","20.00","Services - Security","130215111","30/05/2018","The Hub","Banking","R4405"
"Wolverhampton City Council","http://opendatacommunities.org/id/metropolitan-district-council/wolverhampton","707185","Security Plus Limited","671109","3,197.50","Services - Security","130215268","30/05/2018","The Hub","Cash in Transit (Operational Finance)","R4405"
"Wolverhampton City Council","http://opendatacommunities.org/id/metropolitan-district-council/wolverhampton","707185","Security Plus Limited","670946","6,544.19","Services - Security","130215112","30/05/2018","Parking Services","Car Parks Operational Staff","R4405"
"Wolverhampton City Council","http://opendatacommunities.org/id/metropolitan-district-council/wolverhampton","707185","Security Plus Limited","670944","1,923.90","Services - Security","130215110","30/05/2018","The Hub","Cash in Transit (Operational Finance)","R4405"
"Wolverhampton City Council","http://opendatacommunities.org/id/metropolitan-district-council/wolverhampton","707191","Seesaws Day Nursery","19056","496.00","TPP - Child Care provided for client","130213859","02/05/2018","Adult Education","Discretionary Fund","R5034"
"Wolverhampton City Council","http://opendatacommunities.org/id/metropolitan-district-council/wolverhampton","707196","Select Alarm Systems Limited","88062","178.00","Services - Security","130210060","11/05/2018","Maintenance Programme","Centralised R&M","R4405"
"Wolverhampton City Council","http://opendatacommunities.org/id/metropolitan-district-council/wolverhampton","707210","Selectamark Security Systems PLC","123151","450.00","Equipment - Purchase","130214641","16/05/2018","Transportation","Travelwise","R4000"
"Wolverhampton City Council","http://opendatacommunities.org/id/metropolitan-district-council/wolverhampton","707213","Sellick Partnership Group Limited","INV230030","329.46","Agency Staff","130217137","30/05/2018","Legal Services","Legal Services","R1100"
"Wolverhampton City Council","http://opendatacommunities.org/id/metropolitan-district-council/wolverhampton","707213","Sellick Partnership Group Limited","INV226137","1,419.00","Agency Staff","130213226","30/05/2018","Legal Services","Legal Services","R1100"
"Wolverhampton City Council","http://opendatacommunities.org/id/metropolitan-district-council/wolverhampton","707213","Sellick Partnership Group Limited","INV226448","1,716.00","Agency Staff","130214163","02/05/2018","Legal Services","Legal Services","R1100"
"Wolverhampton City Council","http://opendatacommunities.org/id/metropolitan-district-council/wolverhampton","707213","Sellick Partnership Group Limited","INV230031","1,716.00","Agency Staff","130217138","30/05/2018","Legal Services","Legal Services","R1100"
"Wolverhampton City Council","http://opendatacommunities.org/id/metropolitan-district-council/wolverhampton","707213","Sellick Partnership Group Limited","INV225178","1,375.00","Agency Staff","130213990","02/05/2018","Legal Services","Legal Services","R1100"
"Wolverhampton City Council","http://opendatacommunities.org/id/metropolitan-district-council/wolverhampton","707213","Sellick Partnership Group Limited","INV227534","1,529.00","Agency Staff","130214817","09/05/2018","Legal Services","Legal Services","R1100"
"Wolverhampton City Council","http://opendatacommunities.org/id/metropolitan-district-council/wolverhampton","707213","Sellick Partnership Group Limited","INV228059","1,672.00","Agency Staff","130215577","23/05/2018","Legal Services","Legal Services","R1100"
"Wolverhampton City Council","http://opendatacommunities.org/id/metropolitan-district-council/wolverhampton","707213","Sellick Partnership Group Limited","INV230029","880.84","Agency Staff","130217136","30/05/2018","Legal Services","Legal Services","R1100"
"Wolverhampton City Council","http://opendatacommunities.org/id/metropolitan-district-council/wolverhampton","707213","Sellick Partnership Group Limited","INV230026","630.42","Agency Staff","130217135","30/05/2018","Legal Services","Legal Services","R1100"
"Wolverhampton City Council","http://opendatacommunities.org/id/metropolitan-district-council/wolverhampton","707213","Sellick Partnership Group Limited","INV228999","1,067.00","Agency Staff","130216249","23/05/2018","Legal Services","Legal Services","R1100"
"Wolverhampton City Council","http://opendatacommunities.org/id/metropolitan-district-council/wolverhampton","707213","Sellick Partnership Group Limited","INV230025","861.84","Agency Staff","130217134","30/05/2018","Legal Services","Legal Services","R1100"
"Wolverhampton City Council","http://opendatacommunities.org/id/metropolitan-district-council/wolverhampton","707227","Sentinel Laboratories Limited","0000136888","189.44","Equipment - Purchase","130213860","16/05/2018","Bereavement Services","Coroners","R4000"
"Wolverhampton City Council","http://opendatacommunities.org/id/metropolitan-district-council/wolverhampton","707228","Senwod Contracting Limited","SI-15546","750.00","Materials","130217374","30/05/2018","Bereavement Services","Cemeteries","R4007"
"Wolverhampton City Council","http://opendatacommunities.org/id/metropolitan-district-council/wolverhampton","707228","Senwod Contracting Limited","SI-15546","200.00","Materials","130217374","30/05/2018","Bereavement Services","Cemeteries","R4007"
"Wolverhampton City Council","http://opendatacommunities.org/id/metropolitan-district-council/wolverhampton","707228","Senwod Contracting Limited","SI-15545","600.00","Hire of Plant","130216517","23/05/2018","Environmental Maintenance","Ground Maintenance East","R3201"
"Wolverhampton City Council","http://opendatacommunities.org/id/metropolitan-district-council/wolverhampton","707228","Senwod Contracting Limited","SI-15545","400.00","Hire of Plant","130216517","23/05/2018","Environmental Maintenance","Ground Maintenance East","R3201"
"Wolverhampton City Council","http://opendatacommunities.org/id/metropolitan-district-council/wolverhampton","707228","Senwod Contracting Limited","SI-15545","200.00","Hire of Plant","130216517","23/05/2018","Environmental Maintenance","Ground Maintenance East","R3201"
"Wolverhampton City Council","http://opendatacommunities.org/id/metropolitan-district-council/wolverhampton","707228","Senwod Contracting Limited","SI-13536","925.00","R&M - Departmental response (external)","130215409","18/05/2018","Environmental Maintenance","Parks - East Area Management","R2003"
"Wolverhampton City Council","http://opendatacommunities.org/id/metropolitan-district-council/wolverhampton","707228","Senwod Contracting Limited","SI-12524","4,450.00","R&M - Departmental planned (external)","130216250","16/05/2018","Environmental Maintenance","Parks / Open Spaces - Repairs & Maintenance","R2001"
"Wolverhampton City Council","http://opendatacommunities.org/id/metropolitan-district-council/wolverhampton","707228","Senwod Contracting Limited","SI-13535","5,450.00","R&M - Departmental planned (external)","130215266","09/05/2018","Environmental Maintenance","Parks / Open Spaces - Repairs & Maintenance","R2001"
"Wolverhampton City Council","http://opendatacommunities.org/id/metropolitan-district-council/wolverhampton","707228","Senwod Contracting Limited","SI-14536","2,820.80","Materials","130215578","16/05/2018","Bereavement Services","Cemeteries","R4007"
"Wolverhampton City Council","http://opendatacommunities.org/id/metropolitan-district-council/wolverhampton","707247","Severn Trent Water Limited","956109325","11.26","Water Charges","190455074","25/05/2018","Corporate Asset Management","Central Utilities to Recharge","R2400"
"Wolverhampton City Council","http://opendatacommunities.org/id/metropolitan-district-council/wolverhampton","707247","Severn Trent Water Limited","164071960 corr","-574.50","Water Charges","130213671","25/05/2018","Corporate Asset Management","Central Utilities to Recharge","R2400"
"Wolverhampton City Council","http://opendatacommunities.org/id/metropolitan-district-council/wolverhampton","707247","Severn Trent Water Limited","8303438B","1,040.21","Construction and Conversion","190462978","25/05/2018","-","Bilston Urban Village","C1100"
"Wolverhampton City Council","http://opendatacommunities.org/id/metropolitan-district-council/wolverhampton","707247","Severn Trent Water Limited","8303438A","5,000.00","Construction and Conversion","190462977","25/05/2018","-","Bilston Urban Village","C1100"
"Wolverhampton City Council","http://opendatacommunities.org/id/metropolitan-district-council/wolverhampton","707249","Severn Valley Window & Door Limited","24347","214.00","R&M - Departmental planned (external)","130214943","09/05/2018","Maintenance Programme","Civic Centre Repairs & Maintenance","R2001"
"Wolverhampton City Council","http://opendatacommunities.org/id/metropolitan-district-council/wolverhampton","707249","Severn Valley Window & Door Limited","24366","330.21","R&M - Departmental planned (external)","130216960","25/05/2018","Maintenance Programme","Centralised R&M","R2001"
"Wolverhampton City Council","http://opendatacommunities.org/id/metropolitan-district-council/wolverhampton","707257","SG World Limited","30756410","600.00","Computing - Licences","130215410","25/05/2018","Public Service Reform","Local Government Elections","R4535"
"Wolverhampton City Council","http://opendatacommunities.org/id/metropolitan-district-council/wolverhampton","707257","SG World Limited","30755112","749.00","Computing - Licences","130213386","09/05/2018","Public Service Reform","Local Government Elections","R4535"
"Wolverhampton City Council","http://opendatacommunities.org/id/metropolitan-district-council/wolverhampton","707272","Shaw Park Management Limited","006/03","950.00","Service Charges","130217677","30/05/2018","Headstart","Headstart Phase 3","R2205"
"Wolverhampton City Council","http://opendatacommunities.org/id/metropolitan-district-council/wolverhampton","707288","Shine Fostering","P172732 27051820180504","9,000.00","TPP - Placement Foster Care Agency","190454729","09/05/2018","Looked After Children","Out of City Placements","R5602"
"Wolverhampton City Council","http://opendatacommunities.org/id/metropolitan-district-council/wolverhampton","707296","Shropshire Council","STA006104","150.00","Training Expenses","130211412","16/05/2018","Safeguarding","MCA General","R1650"
"Wolverhampton City Council","http://opendatacommunities.org/id/metropolitan-district-council/wolverhampton","707336","Simple Human","0000526565","6,999.00","Furniture","130214642","23/05/2018","Facilities Management","Civic Centre","R4004"
"Wolverhampton City Council","http://opendatacommunities.org/id/metropolitan-district-council/wolverhampton","707349","SUEZ Recycling & Recovery (Sita UK)","80103000","12,420.20","TPP - Waste Disposal","130216710","25/05/2018","Environmental Maintenance","Ground Maintenance East","R5003"
"Wolverhampton City Council","http://opendatacommunities.org/id/metropolitan-district-council/wolverhampton","707356","SJ Cleaning (Midlands) Limited","WCC1718/12","0.01","Window Cleaning","130216519","18/05/2018","Facilities Management","Civic Centre","R2701"
"Wolverhampton City Council","http://opendatacommunities.org/id/metropolitan-district-council/wolverhampton","707356","SJ Cleaning (Midlands) Limited","WCC1718/12","3,443.34","Window Cleaning","130216519","18/05/2018","Facilities Management","Civic Centre","R2701"
"Wolverhampton City Council","http://opendatacommunities.org/id/metropolitan-district-council/wolverhampton","707356","SJ Cleaning (Midlands) Limited","WCC1718/13","4,887.50","Window Cleaning","130216520","18/05/2018","Facilities Management","Civic Centre","R2701"
"Wolverhampton City Council","http://opendatacommunities.org/id/metropolitan-district-council/wolverhampton","707388","Smith Bros(Caer Conan)Wholesale Limited","557639","2,697.90","Materials","130215579","11/05/2018","Street Lighting","Street Lighting Maintenance","R4007"
"Wolverhampton City Council","http://opendatacommunities.org/id/metropolitan-district-council/wolverhampton","707388","Smith Bros(Caer Conan)Wholesale Limited","557641","4,713.60","Materials","130215581","11/05/2018","Street Lighting","Street Lighting Maintenance","R4007"
"Wolverhampton City Council","http://opendatacommunities.org/id/metropolitan-district-council/wolverhampton","707388","Smith Bros(Caer Conan)Wholesale Limited","557640","3,426.00","Materials","130215580","23/05/2018","Street Lighting","Street Lighting Maintenance","R4007"
"Wolverhampton City Council","http://opendatacommunities.org/id/metropolitan-district-council/wolverhampton","707418","Solihull M B C","Refund super levies 17/18","3,967.96","Enhanced Pension","190454003","04/05/2018","Central Corporate Budgets","Local Government Reorganisation","R1301"
"Wolverhampton City Council","http://opendatacommunities.org/id/metropolitan-district-council/wolverhampton","707419","Solihull Metropolitan B C","107186","2,875.72","TPP - Maintenance Contractor - General","130216251","23/05/2018","Operation & Maintenance of Existing Network","Condition Surveys","R5720"
"Wolverhampton City Council","http://opendatacommunities.org/id/metropolitan-district-council/wolverhampton","707422","Solon Security Limited","SI18003061","1,280.06","Equipment - Purchase","130213994","09/05/2018","Transportation","I54 Travel Plan Steering Group","R4000"
"Wolverhampton City Council","http://opendatacommunities.org/id/metropolitan-district-council/wolverhampton","707422","Solon Security Limited","SI18003061","639.94","Equipment - Purchase","130213994","09/05/2018","Transportation","Travelwise","R4000"
"Wolverhampton City Council","http://opendatacommunities.org/id/metropolitan-district-council/wolverhampton","707422","Solon Security Limited","SI18002528","2,550.00","Equipment - Purchase","130216521","23/05/2018","Transportation","Cycling Schemes - Bikeability","R4000"
"Wolverhampton City Council","http://opendatacommunities.org/id/metropolitan-district-council/wolverhampton","707438","Ormiston SWB Academy","P17289120180504","600.00","Grant Payments to Individuals","190454802","09/05/2018","Looked After Children","LAC Education Team (LACE)","R6402"
"Wolverhampton City Council","http://opendatacommunities.org/id/metropolitan-district-council/wolverhampton","707438","Ormiston SWB Academy","P17289120180504","600.00","Grant Payments to Individuals","190454802","09/05/2018","Looked After Children","LAC Education Team (LACE)","R6402"
"Wolverhampton City Council","http://opendatacommunities.org/id/metropolitan-district-council/wolverhampton","707441","Southern Electric PLC","8516650032018","250.00","Electricity","190460855","23/05/2018","Corporate Asset Management","Central Utilities to Recharge","R2100"
"Wolverhampton City Council","http://opendatacommunities.org/id/metropolitan-district-council/wolverhampton","707447","Sovereign Coaches Limited","20787","250.00","Client Transport","130215723","25/05/2018","Special Educational Needs","Special - Transport","R3042"
"Wolverhampton City Council","http://opendatacommunities.org/id/metropolitan-district-council/wolverhampton","707447","Sovereign Coaches Limited","20640","500.00","Client Transport","130215721","11/05/2018","Special Educational Needs","Special - Transport","R3042"
"Wolverhampton City Council","http://opendatacommunities.org/id/metropolitan-district-council/wolverhampton","707447","Sovereign Coaches Limited","20686","375.00","Client Transport","130215722","11/05/2018","Special Educational Needs","Special - Transport","R3042"
"Wolverhampton City Council","http://opendatacommunities.org/id/metropolitan-district-council/wolverhampton","707447","Sovereign Coaches Limited","20675","375.00","Client Transport","130215724","23/05/2018","Special Educational Needs","Special - Transport","R3042"
"Wolverhampton City Council","http://opendatacommunities.org/id/metropolitan-district-council/wolverhampton","707463","Specialised Tools & Equipment Limited","088251","302.80","Equipment - Purchase","130214461","30/05/2018","Environmental Maintenance","Direct Schools","R4000"
"Wolverhampton City Council","http://opendatacommunities.org/id/metropolitan-district-council/wolverhampton","707463","Specialised Tools & Equipment Limited","088251","122.00","Equipment - Purchase","130214461","30/05/2018","Environmental Maintenance","Graffiti Removal Team","R4000"
"Wolverhampton City Council","http://opendatacommunities.org/id/metropolitan-district-council/wolverhampton","707465","Specialist Crafts Limited","SINHO00328375","52.58","Equipment - Purchase","130214643","04/05/2018","Adult Education","Creative Studies Delivery Area","R4000"
"Wolverhampton City Council","http://opendatacommunities.org/id/metropolitan-district-council/wolverhampton","707474","Speedy Asset Services Limited","7111306309","52.80","Hire of Plant","130212821","23/05/2018","Highways Maintenance","Patching","R3201"
"Wolverhampton City Council","http://opendatacommunities.org/id/metropolitan-district-council/wolverhampton","707474","Speedy Asset Services Limited","7111305877","114.40","Hire of Plant","130212817","23/05/2018","Highways Maintenance","Patching","R3201"
"Wolverhampton City Council","http://opendatacommunities.org/id/metropolitan-district-council/wolverhampton","707474","Speedy Asset Services Limited","7111306891","73.92","Hire of Plant","130212826","23/05/2018","Highways Maintenance","Patching","R3201"
"Wolverhampton City Council","http://opendatacommunities.org/id/metropolitan-district-council/wolverhampton","707474","Speedy Asset Services Limited","7111306468","121.00","Hire of Plant","130212822","23/05/2018","Highways Maintenance","Patching","R3201"
"Wolverhampton City Council","http://opendatacommunities.org/id/metropolitan-district-council/wolverhampton","707474","Speedy Asset Services Limited","7111307419","88.00","Equipment - Hire","130212830","23/05/2018","Highways Maintenance","Planned Highways Maintenance","R4001"
"Wolverhampton City Council","http://opendatacommunities.org/id/metropolitan-district-council/wolverhampton","707474","Speedy Asset Services Limited","7111305881","54.47","Equipment - Hire","130212818","25/05/2018","Highways Maintenance","Planned Highways Maintenance","R4001"
"Wolverhampton City Council","http://opendatacommunities.org/id/metropolitan-district-council/wolverhampton","707474","Speedy Asset Services Limited","7111305722","54.47","Hire of Plant","130212816","23/05/2018","Highways Maintenance","Patching","R3201"
"Wolverhampton City Council","http://opendatacommunities.org/id/metropolitan-district-council/wolverhampton","707474","Speedy Asset Services Limited","7111306306","52.80","Hire of Plant","130212820","23/05/2018","Highways Maintenance","Patching","R3201"
"Wolverhampton City Council","http://opendatacommunities.org/id/metropolitan-district-council/wolverhampton","707474","Speedy Asset Services Limited","7111306894","113.78","Hire of Plant","130212827","23/05/2018","Highways Maintenance","Patching","R3201"
"Wolverhampton City Council","http://opendatacommunities.org/id/metropolitan-district-council/wolverhampton","707474","Speedy Asset Services Limited","7111306999","49.56","Hire of Plant","130212828","23/05/2018","Highways Maintenance","Patching","R3201"
"Wolverhampton City Council","http://opendatacommunities.org/id/metropolitan-district-council/wolverhampton","707474","Speedy Asset Services Limited","7111307842","107.27","Hire of Plant","130212836","23/05/2018","Highways Maintenance","Patching","R3201"
"Wolverhampton City Council","http://opendatacommunities.org/id/metropolitan-district-council/wolverhampton","707474","Speedy Asset Services Limited","7111307689","52.80","Hire of Plant","130212834","23/05/2018","Highways Maintenance","Patching","R3201"
"Wolverhampton City Council","http://opendatacommunities.org/id/metropolitan-district-council/wolverhampton","707474","Speedy Asset Services Limited","7111306050","294.15","Hire of Plant","130212819","23/05/2018","Highways Maintenance","Patching","R3201"
"Wolverhampton City Council","http://opendatacommunities.org/id/metropolitan-district-council/wolverhampton","707474","Speedy Asset Services Limited","7111307425","88.00","Hire of Plant","130212831","23/05/2018","Highways Maintenance","Patching","R3201"
"Wolverhampton City Council","http://opendatacommunities.org/id/metropolitan-district-council/wolverhampton","707474","Speedy Asset Services Limited","7111307555","566.06","Hire of Plant","130212833","23/05/2018","Highways Maintenance","Patching","R3201"
"Wolverhampton City Council","http://opendatacommunities.org/id/metropolitan-district-council/wolverhampton","707474","Speedy Asset Services Limited","7111306607","113.78","Hire of Plant","130212823","23/05/2018","Highways Maintenance","Patching","R3201"
"Wolverhampton City Council","http://opendatacommunities.org/id/metropolitan-district-council/wolverhampton","707474","Speedy Asset Services Limited","7111305454","54.52","Hire of Plant","130212813","30/05/2018","Highways Maintenance","Patching","R3201"
"Wolverhampton City Council","http://opendatacommunities.org/id/metropolitan-district-council/wolverhampton","707474","Speedy Asset Services Limited","7111306613","1,059.30","Equipment - Hire","130212824","25/05/2018","Highways Maintenance","Planned Highways Maintenance","R4001"
"Wolverhampton City Council","http://opendatacommunities.org/id/metropolitan-district-council/wolverhampton","707474","Speedy Asset Services Limited","7111305629","54.52","Equipment - Hire","130212814","25/05/2018","Highways Maintenance","Planned Highways Maintenance","R4001"
"Wolverhampton City Council","http://opendatacommunities.org/id/metropolitan-district-council/wolverhampton","707474","Speedy Asset Services Limited","7111307549","54.52","Hire of Plant","130212832","23/05/2018","Highways Maintenance","Patching","R3201"
"Wolverhampton City Council","http://opendatacommunities.org/id/metropolitan-district-council/wolverhampton","707474","Speedy Asset Services Limited","7111305716","28.51","Hire of Plant","130212815","23/05/2018","Highways Maintenance","Patching","R3201"
"Wolverhampton City Council","http://opendatacommunities.org/id/metropolitan-district-council/wolverhampton","707474","Speedy Asset Services Limited","7111306887","113.78","Hire of Plant","130212825","23/05/2018","Highways Maintenance","Patching","R3201"
"Wolverhampton City Council","http://opendatacommunities.org/id/metropolitan-district-council/wolverhampton","707474","Speedy Asset Services Limited","7111307836","103.49","Hire of Plant","130212835","23/05/2018","Highways Maintenance","Patching","R3201"
"Wolverhampton City Council","http://opendatacommunities.org/id/metropolitan-district-council/wolverhampton","707492","Sportsafe UK Limited","523679","750.00","Equipment - R & M","130214818","23/05/2018","Leisure Services","Aldersley Leisure Village","R4003"
"Wolverhampton City Council","http://opendatacommunities.org/id/metropolitan-district-council/wolverhampton","707493","Sportwise Marketing Limited","7389818","195.00","Grant Payments","130216366","23/05/2018","Community Safety","VAWG service transformation Fund","R4700"
"Wolverhampton City Council","http://opendatacommunities.org/id/metropolitan-district-council/wolverhampton","707517","St George�S Veterinary Group","WCC2017_08","360.00","Services - Professional Fees","130215582","11/05/2018","Public Protection","Pest Control & Animal Welfare","R4400"
"Wolverhampton City Council","http://opendatacommunities.org/id/metropolitan-district-council/wolverhampton","707519","St Ives Chambers","INVAAA23","500.00","Services - Professional Fees","130215836","11/05/2018","Legal Services","Centralised External Legal Costs","R4400"
"Wolverhampton City Council","http://opendatacommunities.org/id/metropolitan-district-council/wolverhampton","707519","St Ives Chambers","INVAAA26","400.00","Services - Professional Fees","130215583","16/05/2018","Special Educational Needs","SEN Special Education Admin","R4400"
"Wolverhampton City Council","http://opendatacommunities.org/id/metropolitan-district-council/wolverhampton","707521","St Johns Ambulance","SP17015640","92.00","Services - Professional Fees","130216963","23/05/2018","Early Intervention","EIP Locality 2 � Bilston/Rocket Pool","R4400"
"Wolverhampton City Council","http://opendatacommunities.org/id/metropolitan-district-council/wolverhampton","707542","St Peter�S Collegiate School","P17289120180504","600.00","Grant Payments to Individuals","190454802","09/05/2018","Looked After Children","LAC Education Team (LACE)","R6402"
"Wolverhampton City Council","http://opendatacommunities.org/id/metropolitan-district-council/wolverhampton","707542","St Peter�S Collegiate School","P17289120180504","600.00","Grant Payments to Individuals","190454802","09/05/2018","Looked After Children","LAC Education Team (LACE)","R6402"
"Wolverhampton City Council","http://opendatacommunities.org/id/metropolitan-district-council/wolverhampton","707542","St Peter�S Collegiate School","P17289120180504","600.00","Grant Payments to Individuals","190454802","09/05/2018","Looked After Children","LAC Education Team (LACE)","R6402"
"Wolverhampton City Council","http://opendatacommunities.org/id/metropolitan-district-council/wolverhampton","707564","Staffordshire County Council","1000008289","1,611.96","Client Transport - SEN","130214646","02/05/2018","Special Educational Needs","Special - Transport","R3043"
"Wolverhampton City Council","http://opendatacommunities.org/id/metropolitan-district-council/wolverhampton","707564","Staffordshire County Council","1000008296","4,425.48","Client Transport - SEN","130214649","02/05/2018","Special Educational Needs","Special - Transport","R3043"
"Wolverhampton City Council","http://opendatacommunities.org/id/metropolitan-district-council/wolverhampton","707564","Staffordshire County Council","1000008287","1,390.23","Client Transport - SEN","130214645","02/05/2018","Special Educational Needs","Special - Transport","R3043"
"Wolverhampton City Council","http://opendatacommunities.org/id/metropolitan-district-council/wolverhampton","707564","Staffordshire County Council","1000008290","4,967.55","Client Transport - SEN","130214647","02/05/2018","Special Educational Needs","Special - Transport","R3043"
"Wolverhampton City Council","http://opendatacommunities.org/id/metropolitan-district-council/wolverhampton","707564","Staffordshire County Council","1000008282","3,557.68","Client Transport - SEN","130214644","02/05/2018","Special Educational Needs","Special - Transport","R3043"
"Wolverhampton City Council","http://opendatacommunities.org/id/metropolitan-district-council/wolverhampton","707564","Staffordshire County Council","1000009144","13,929.60","TPP - Payments to Local Authorities","130215837","16/05/2018","Strategic Commissioning","Head of Strategic Commissioning","R5100"
"Wolverhampton City Council","http://opendatacommunities.org/id/metropolitan-district-council/wolverhampton","707564","Staffordshire County Council","1000008957","80.50","Services - Professional Fees","130215113","04/05/2018","Highways Maintenance","Winter Maintenance","R4400"
"Wolverhampton City Council","http://opendatacommunities.org/id/metropolitan-district-council/wolverhampton","707564","Staffordshire County Council","1000008292","3,822.00","Client Transport - SEN","130214648","02/05/2018","Special Educational Needs","Special - Transport","R3043"
"Wolverhampton City Council","http://opendatacommunities.org/id/metropolitan-district-council/wolverhampton","707572","Stage Audio Services Limited","3965","4,500.00","Equipment - Hire","130216005","18/05/2018","Public Service Reform","Civic Events","R4001"
"Wolverhampton City Council","http://opendatacommunities.org/id/metropolitan-district-council/wolverhampton","707572","Stage Audio Services Limited","3968","1,045.00","Equipment - Hire","130216367","25/05/2018","Visitor Economy","The Little Civic","R4001"
"Wolverhampton City Council","http://opendatacommunities.org/id/metropolitan-district-council/wolverhampton","707575","Stage Wolves Limited","5705","217.00","Services - Professional Fees","130214166","18/05/2018","Visitor Economy","ST GEORGES DAY","R4400"
"Wolverhampton City Council","http://opendatacommunities.org/id/metropolitan-district-council/wolverhampton","707575","Stage Wolves Limited","5701","750.00","Services - Professional Fees","130212101","02/05/2018","Visitor Economy","Civic & Wulfrun In-House Promotions","R4400"
"Wolverhampton City Council","http://opendatacommunities.org/id/metropolitan-district-council/wolverhampton","707579","Stanley Security Solutions Limited","75403619","1,370.39","Equipment - Purchase","190455266","09/05/2018","Fleet Services","Fleet Management","R4000"
"Wolverhampton City Council","http://opendatacommunities.org/id/metropolitan-district-council/wolverhampton","707579","Stanley Security Solutions Limited","75403199","-1,284.14","Equipment - Purchase","190455265","09/05/2018","Fleet Services","Fleet Management","R4000"
"Wolverhampton City Council","http://opendatacommunities.org/id/metropolitan-district-council/wolverhampton","707580","Stannah Lifts Limited","17/0745/SAG","2,893.00","Grants paid out to other organisations","190457845","16/05/2018","-","Disabled Facilities Grants","C5011"
"Wolverhampton City Council","http://opendatacommunities.org/id/metropolitan-district-council/wolverhampton","707580","Stannah Lifts Limited","17/0740/SAG","3,058.00","Grants paid out to other organisations","190457844","16/05/2018","-","Disabled Facilities Grants","C5011"
"Wolverhampton City Council","http://opendatacommunities.org/id/metropolitan-district-council/wolverhampton","707580","Stannah Lifts Limited","18/0050/SLMb","1,441.65","Grants paid out to other organisations","190459619","18/05/2018","-","Disabled Facilities Grants","C5011"
"Wolverhampton City Council","http://opendatacommunities.org/id/metropolitan-district-council/wolverhampton","707580","Stannah Lifts Limited","18/0050/SLMa","2,500.00","Grants paid out to other organisations","190459619","18/05/2018","-","Disabled Facilities Grants","C5011"
"Wolverhampton City Council","http://opendatacommunities.org/id/metropolitan-district-council/wolverhampton","707580","Stannah Lifts Limited","16/0686/SAGa","1,008.40","Grants paid out to other organisations","190452560","02/05/2018","-","Disabled Facilities Grants","C5011"
"Wolverhampton City Council","http://opendatacommunities.org/id/metropolitan-district-council/wolverhampton","707580","Stannah Lifts Limited","18/0044/SLM","103.74","Grants paid out to other organisations","190453526","02/05/2018","-","Disabled Facilities Grants","C5011"
"Wolverhampton City Council","http://opendatacommunities.org/id/metropolitan-district-council/wolverhampton","707580","Stannah Lifts Limited","17/0558/SAG","2,914.00","Grants paid out to other organisations","190457786","16/05/2018","-","Disabled Facilities Grants","C5011"
"Wolverhampton City Council","http://opendatacommunities.org/id/metropolitan-district-council/wolverhampton","707580","Stannah Lifts Limited","17/0497/SAG","2,965.00","Grants paid out to other organisations","190457842","16/05/2018","-","Disabled Facilities Grants","C5011"
"Wolverhampton City Council","http://opendatacommunities.org/id/metropolitan-district-council/wolverhampton","707580","Stannah Lifts Limited","18/0050/SLMb","1,441.65","Grants paid out to other organisations","190459619","18/05/2018","-","Disabled Facilities Grants","C5011"
"Wolverhampton City Council","http://opendatacommunities.org/id/metropolitan-district-council/wolverhampton","707580","Stannah Lifts Limited","18/0050/SLMa","2,500.00","Grants paid out to other organisations","190459619","18/05/2018","-","Disabled Facilities Grants","C5011"
"Wolverhampton City Council","http://opendatacommunities.org/id/metropolitan-district-council/wolverhampton","707580","Stannah Lifts Limited","18/0038/SLM","63.32","Grants paid out to other organisations","190452558","02/05/2018","-","Disabled Facilities Grants","C5011"
"Wolverhampton City Council","http://opendatacommunities.org/id/metropolitan-district-council/wolverhampton","707580","Stannah Lifts Limited","18/0088/SLM","399.42","Grants paid out to other organisations","190459620","18/05/2018","-","Disabled Facilities Grants","C5011"
"Wolverhampton City Council","http://opendatacommunities.org/id/metropolitan-district-council/wolverhampton","707580","Stannah Lifts Limited","17/0775/SAG","932.00","Grants paid out to other organisations","190462060","23/05/2018","-","Disabled Facilities Grants","C5011"
"Wolverhampton City Council","http://opendatacommunities.org/id/metropolitan-district-council/wolverhampton","707580","Stannah Lifts Limited","18/0042/SAG","720.00","Grants paid out to other organisations","190452563","02/05/2018","-","Disabled Facilities Grants","C5011"
"Wolverhampton City Council","http://opendatacommunities.org/id/metropolitan-district-council/wolverhampton","707580","Stannah Lifts Limited","17/0495/SAGa","130.00","Grants paid out to other organisations","190452565","02/05/2018","-","Disabled Facilities Grants","C5011"
"Wolverhampton City Council","http://opendatacommunities.org/id/metropolitan-district-council/wolverhampton","707580","Stannah Lifts Limited","17/0648/SAG","5,607.00","Grants paid out to other organisations","190457843","16/05/2018","-","Disabled Facilities Grants","C5011"
"Wolverhampton City Council","http://opendatacommunities.org/id/metropolitan-district-council/wolverhampton","707580","Stannah Lifts Limited","17/0540/SAG","2,854.00","Grants paid out to other organisations","190457780","16/05/2018","-","Disabled Facilities Grants","C5011"
"Wolverhampton City Council","http://opendatacommunities.org/id/metropolitan-district-council/wolverhampton","707580","Stannah Lifts Limited","18/0087/SLM","123.32","Grants paid out to other organisations","190459617","18/05/2018","-","Disabled Facilities Grants","C5011"
"Wolverhampton City Council","http://opendatacommunities.org/id/metropolitan-district-council/wolverhampton","707580","Stannah Lifts Limited","17/0678/SAG","3,459.00","Grants paid out to other organisations","190459616","18/05/2018","-","Disabled Facilities Grants","C5011"
"Wolverhampton City Council","http://opendatacommunities.org/id/metropolitan-district-council/wolverhampton","707580","Stannah Lifts Limited","17/0147/SAG","4,221.20","Grants paid out to other organisations","190452564","02/05/2018","-","Disabled Facilities Grants","C5011"
"Wolverhampton City Council","http://opendatacommunities.org/id/metropolitan-district-council/wolverhampton","707580","Stannah Lifts Limited","17/0292/SAG","615.00","Grants paid out to other organisations","190452562","02/05/2018","-","Disabled Facilities Grants","C5011"
"Wolverhampton City Council","http://opendatacommunities.org/id/metropolitan-district-council/wolverhampton","707580","Stannah Lifts Limited","17/0610/SAG","2,982.00","Grants paid out to other organisations","190457779","16/05/2018","-","Disabled Facilities Grants","C5011"
"Wolverhampton City Council","http://opendatacommunities.org/id/metropolitan-district-council/wolverhampton","707580","Stannah Lifts Limited","17/0744/SAG","2,663.00","Grants paid out to other organisations","190457783","16/05/2018","-","Disabled Facilities Grants","C5011"
"Wolverhampton City Council","http://opendatacommunities.org/id/metropolitan-district-council/wolverhampton","707581","Stannah Limited/Stannah Lift Services","S085085492","50.00","Construction and Conversion","130212837","04/05/2018","-","Adaptations for People with Disabilites","C1100"
"Wolverhampton City Council","http://opendatacommunities.org/id/metropolitan-district-council/wolverhampton","707581","Stannah Limited/Stannah Lift Services","S085085283","50.00","Construction and Conversion","130212656","02/05/2018","-","Adaptations for People with Disabilites","C1100"
"Wolverhampton City Council","http://opendatacommunities.org/id/metropolitan-district-council/wolverhampton","707626","Stonegate Pub Company Limited","SI765695","20,000.00","Rent","130215267","09/05/2018","Specialist Support","Youth Service - Youth Cafe","R2200"
"Wolverhampton City Council","http://opendatacommunities.org/id/metropolitan-district-council/wolverhampton","707627","Stoneleigh Consultancy Limited","46692","3,456.00","Plant, Equipment, Machinery & Computer Hardware","130215726","18/05/2018","-","ICT General Programme","C3000"
"Wolverhampton City Council","http://opendatacommunities.org/id/metropolitan-district-council/wolverhampton","707627","Stoneleigh Consultancy Limited","46692","742.77","Plant, Equipment, Machinery & Computer Hardware","130215726","18/05/2018","-","ICT General Programme","C3000"
"Wolverhampton City Council","http://opendatacommunities.org/id/metropolitan-district-council/wolverhampton","707627","Stoneleigh Consultancy Limited","46692","131.13","Plant, Equipment, Machinery & Computer Hardware","130215726","18/05/2018","-","ICT General Programme","C3000"
"Wolverhampton City Council","http://opendatacommunities.org/id/metropolitan-district-council/wolverhampton","707644","Streetmaster (South Wales)Limited","4169","548.00","Materials for resale","130216964","23/05/2018","Bereavement Services","Cemeteries","R4008"
"Wolverhampton City Council","http://opendatacommunities.org/id/metropolitan-district-council/wolverhampton","707644","Streetmaster (South Wales)Limited","5182","607.00","Materials for resale","130214463","23/05/2018","Bereavement Services","Cemeteries","R4008"
"Wolverhampton City Council","http://opendatacommunities.org/id/metropolitan-district-council/wolverhampton","707657","Stulz UK Limited","18-7672","2,266.75","R&M - Departmental planned (internal)","130215585","16/05/2018","Maintenance Programme","Civic Centre Repairs & Maintenance","R2000"
"Wolverhampton City Council","http://opendatacommunities.org/id/metropolitan-district-council/wolverhampton","707685","Sunnyside Kennels","SS1061","1,256.67","Services - Professional Fees","130213862","11/05/2018","Public Protection","Pest Control & Animal Welfare","R4400"
"Wolverhampton City Council","http://opendatacommunities.org/id/metropolitan-district-council/wolverhampton","707686","Sunrise Medical Limited","18UI079120","1,072.00","Equipment - Purchase","130214464","23/05/2018","Independent Living Service","Independent Living Service","R4000"
"Wolverhampton City Council","http://opendatacommunities.org/id/metropolitan-district-council/wolverhampton","707686","Sunrise Medical Limited","18UI079120","126.00","Equipment - R & M","130214464","23/05/2018","Independent Living Service","Independent Living Service","R4003"
"Wolverhampton City Council","http://opendatacommunities.org/id/metropolitan-district-council/wolverhampton","707686","Sunrise Medical Limited","18UI079693","1,400.00","Equipment - Purchase","130214819","23/05/2018","Independent Living Service","Independent Living Service","R4000"
"Wolverhampton City Council","http://opendatacommunities.org/id/metropolitan-district-council/wolverhampton","707686","Sunrise Medical Limited","18UI079693","280.00","Equipment - Purchase","130214819","23/05/2018","Independent Living Service","Independent Living Service","R4000"
"Wolverhampton City Council","http://opendatacommunities.org/id/metropolitan-district-council/wolverhampton","707686","Sunrise Medical Limited","18UI079693","140.00","Equipment - Purchase","130214819","23/05/2018","Independent Living Service","Independent Living Service","R4000"
"Wolverhampton City Council","http://opendatacommunities.org/id/metropolitan-district-council/wolverhampton","707686","Sunrise Medical Limited","18UI074482","200.00","Equipment - Purchase","130212657","04/05/2018","Independent Living Service","Independent Living Service","R4000"
"Wolverhampton City Council","http://opendatacommunities.org/id/metropolitan-district-council/wolverhampton","707686","Sunrise Medical Limited","18UI080766","800.00","Equipment - Purchase","130215411","30/05/2018","Independent Living Service","Independent Living Service","R4000"
"Wolverhampton City Council","http://opendatacommunities.org/id/metropolitan-district-council/wolverhampton","707686","Sunrise Medical Limited","18UI073589","1,050.00","Equipment - Purchase","130212284","02/05/2018","Independent Living Service","Independent Living Service","R4000"
"Wolverhampton City Council","http://opendatacommunities.org/id/metropolitan-district-council/wolverhampton","707700","Supreme Hygiene","SF/03 29388","1,369.68","Cleaning Supplies and Materials","130216965","30/05/2018","Early Intervention","EIP Locality 2 � Bilston/Rocket Pool","R2705"
"Wolverhampton City Council","http://opendatacommunities.org/id/metropolitan-district-council/wolverhampton","707716","Swann Systems (UK) Limited","IN1801880","88.58","Equipment - Purchase","190462901","25/05/2018","Fleet Services","Fleet Management","R4000"
"Wolverhampton City Council","http://opendatacommunities.org/id/metropolitan-district-council/wolverhampton","707716","Swann Systems (UK) Limited","IN1801880","55.34","Equipment - Purchase","190462901","25/05/2018","Fleet Services","Fleet Management","R4000"
"Wolverhampton City Council","http://opendatacommunities.org/id/metropolitan-district-council/wolverhampton","707716","Swann Systems (UK) Limited","IN1801880","12.84","Equipment - Purchase","190462901","25/05/2018","Fleet Services","Fleet Management","R4000"
"Wolverhampton City Council","http://opendatacommunities.org/id/metropolitan-district-council/wolverhampton","707722","Swift Maintnce Services (1973) Limited","25986","242.50","Equipment - Purchase","130215586","11/05/2018","Catering","Education Catering - General Overheads","R4000"
"Wolverhampton City Council","http://opendatacommunities.org/id/metropolitan-district-council/wolverhampton","707722","Swift Maintnce Services (1973) Limited","25923","289.46","Equipment - R & M","130214821","04/05/2018","Leisure Services","WV Active Catering","R4003"
"Wolverhampton City Council","http://opendatacommunities.org/id/metropolitan-district-council/wolverhampton","707722","Swift Maintnce Services (1973) Limited","26115","366.14","Equipment - R & M","130217515","30/05/2018","Learning Disability Provider","Duke Street Bungalows","R4003"
"Wolverhampton City Council","http://opendatacommunities.org/id/metropolitan-district-council/wolverhampton","707722","Swift Maintnce Services (1973) Limited","25897","68.38","Equipment - Catering","130214650","04/05/2018","Leisure Services","WV Active Catering","R4010"
"Wolverhampton City Council","http://opendatacommunities.org/id/metropolitan-district-council/wolverhampton","707722","Swift Maintnce Services (1973) Limited","25950","3,395.84","Equipment - R & M","130215114","25/05/2018","Cleaning","Cleaning of Buildings - General","R4003"
"Wolverhampton City Council","http://opendatacommunities.org/id/metropolitan-district-council/wolverhampton","707722","Swift Maintnce Services (1973) Limited","25844","210.45","Equipment - R & M","130214167","11/05/2018","Leisure Services","WV Active Catering","R4003"
"Wolverhampton City Council","http://opendatacommunities.org/id/metropolitan-district-council/wolverhampton","707722","Swift Maintnce Services (1973) Limited","24722","54.13","Equipment - R & M","130203568","04/05/2018","Learning Disability Provider","Duke Street Bungalows","R4003"
"Wolverhampton City Council","http://opendatacommunities.org/id/metropolitan-district-council/wolverhampton","707722","Swift Maintnce Services (1973) Limited","25869","223.66","Equipment - Catering","130214465","02/05/2018","Visitor Economy","Art Gallery Tea Room","R4010"
"Wolverhampton City Council","http://opendatacommunities.org/id/metropolitan-district-council/wolverhampton","707722","Swift Maintnce Services (1973) Limited","25856","2,891.38","Equipment - Catering","130214168","02/05/2018","Catering","Education Catering - General Overheads","R4010"
"Wolverhampton City Council","http://opendatacommunities.org/id/metropolitan-district-council/wolverhampton","707722","Swift Maintnce Services (1973) Limited","25924","118.25","Equipment - Catering","130214822","04/05/2018","Leisure Services","WV Active Catering","R4010"
"Wolverhampton City Council","http://opendatacommunities.org/id/metropolitan-district-council/wolverhampton","707722","Swift Maintnce Services (1973) Limited","25984","65.10","Equipment - R & M","130215414","16/05/2018","Learning Disability Provider","Duke Street Bungalows","R4003"
"Wolverhampton City Council","http://opendatacommunities.org/id/metropolitan-district-council/wolverhampton","707726","Swimrite Supplies Limited","392116","696.59","Materials for resale","130216006","16/05/2018","Leisure Services","Central Baths","R4008"
"Wolverhampton City Council","http://opendatacommunities.org/id/metropolitan-district-council/wolverhampton","707731","Switchshop Limited","127760","3,877.29","Plant, Equipment, Machinery & Computer Hardware","130214823","02/05/2018","-","ICT General Programme","C3000"
"Wolverhampton City Council","http://opendatacommunities.org/id/metropolitan-district-council/wolverhampton","707731","Switchshop Limited","127760","833.31","Plant, Equipment, Machinery & Computer Hardware","130214823","02/05/2018","-","ICT General Programme","C3000"
"Wolverhampton City Council","http://opendatacommunities.org/id/metropolitan-district-council/wolverhampton","707731","Switchshop Limited","127760","31.50","Plant, Equipment, Machinery & Computer Hardware","130214823","02/05/2018","-","ICT General Programme","C3000"
"Wolverhampton City Council","http://opendatacommunities.org/id/metropolitan-district-council/wolverhampton","707731","Switchshop Limited","127760","3,145.08","Plant, Equipment, Machinery & Computer Hardware","130214823","02/05/2018","-","ICT General Programme","C3000"
"Wolverhampton City Council","http://opendatacommunities.org/id/metropolitan-district-council/wolverhampton","707741","Systems Engineering & Assessment Limited","SIN030616","2,277.60","Computing - Maint Agreements","130214301","16/05/2018","Parking Services","Parking Enforcement","R4534"
"Wolverhampton City Council","http://opendatacommunities.org/id/metropolitan-district-council/wolverhampton","707741","Systems Engineering & Assessment Limited","SIN030617","6,500.31","Computing - Maint Agreements","130214302","16/05/2018","Parking Services","Parking Enforcement","R4534"
"Wolverhampton City Council","http://opendatacommunities.org/id/metropolitan-district-council/wolverhampton","707751","T H White Limited","E83298","18.48","Equipment - Purchase","190462881","25/05/2018","Fleet Services","Fleet Management","R4000"
"Wolverhampton City Council","http://opendatacommunities.org/id/metropolitan-district-council/wolverhampton","707751","T H White Limited","E83298","29.58","Equipment - Purchase","190462881","25/05/2018","Fleet Services","Fleet Management","R4000"
"Wolverhampton City Council","http://opendatacommunities.org/id/metropolitan-district-council/wolverhampton","707751","T H White Limited","E83298","8.98","Equipment - Purchase","190462881","25/05/2018","Fleet Services","Fleet Management","R4000"
"Wolverhampton City Council","http://opendatacommunities.org/id/metropolitan-district-council/wolverhampton","707751","T H White Limited","E83298","49.77","Equipment - Purchase","190462881","25/05/2018","Fleet Services","Fleet Management","R4000"
"Wolverhampton City Council","http://opendatacommunities.org/id/metropolitan-district-council/wolverhampton","707751","T H White Limited","E83298","29.24","Equipment - Purchase","190462881","25/05/2018","Fleet Services","Fleet Management","R4000"
"Wolverhampton City Council","http://opendatacommunities.org/id/metropolitan-district-council/wolverhampton","707751","T H White Limited","E83298","67.61","Equipment - Purchase","190462881","25/05/2018","Fleet Services","Fleet Management","R4000"
"Wolverhampton City Council","http://opendatacommunities.org/id/metropolitan-district-council/wolverhampton","707751","T H White Limited","E83298","39.98","Equipment - Purchase","190462881","25/05/2018","Fleet Services","Fleet Management","R4000"
"Wolverhampton City Council","http://opendatacommunities.org/id/metropolitan-district-council/wolverhampton","707751","T H White Limited","E83298","85.48","Equipment - Purchase","190462881","25/05/2018","Fleet Services","Fleet Management","R4000"
"Wolverhampton City Council","http://opendatacommunities.org/id/metropolitan-district-council/wolverhampton","707751","T H White Limited","E83298","5.81","Equipment - Purchase","190462881","25/05/2018","Fleet Services","Fleet Management","R4000"
"Wolverhampton City Council","http://opendatacommunities.org/id/metropolitan-district-council/wolverhampton","707751","T H White Limited","E83076","1,501.00","Equipment - Purchase","130215415","30/05/2018","Bereavement Services","Cemeteries","R4000"
"Wolverhampton City Council","http://opendatacommunities.org/id/metropolitan-district-council/wolverhampton","707775","Tameside M.B.C.","61762154","1,050.00","Subscriptions","130213864","02/05/2018","Audit Services","Audit Services","R4701"
"Wolverhampton City Council","http://opendatacommunities.org/id/metropolitan-district-council/wolverhampton","707775","Tameside M.B.C.","61531068","37.15","Subscriptions","130214467","09/05/2018","Audit Services","Audit Services","R4701"
"Wolverhampton City Council","http://opendatacommunities.org/id/metropolitan-district-council/wolverhampton","707775","Tameside M.B.C.","61226506","51.19","Subscriptions","130214651","02/05/2018","Audit Services","Audit Services","R4701"
"Wolverhampton City Council","http://opendatacommunities.org/id/metropolitan-district-council/wolverhampton","707821","Technical Surfaces Limited","55015","590.00","R&M - Departmental planned (external)","130216368","30/05/2018","Leisure Services","Aldersley Leisure Village","R2001"
"Wolverhampton City Council","http://opendatacommunities.org/id/metropolitan-district-council/wolverhampton","707840","Telewest Communications/Virgin Media","033674001/001/1216","38.20","Comms - Telephone Rental","190452566","02/05/2018","ICTS","Strategic ICTS (ICT Service Budget)","R4504"
"Wolverhampton City Council","http://opendatacommunities.org/id/metropolitan-district-council/wolverhampton","707840","Telewest Communications/Virgin Media","035045301/001/1116","6.00","Comms - Telephone Rental","190452569","02/05/2018","ICTS","Strategic ICTS (ICT Service Budget)","R4504"
"Wolverhampton City Council","http://opendatacommunities.org/id/metropolitan-district-council/wolverhampton","707840","Telewest Communications/Virgin Media","935697-029","90,900.00","Comms - Telephone Rental","190452574","02/05/2018","ICTS","Strategic ICTS (ICT Service Budget)","R4504"
"Wolverhampton City Council","http://opendatacommunities.org/id/metropolitan-district-council/wolverhampton","707840","Telewest Communications/Virgin Media","935695-032","-4,355.35","Comms - Telephone Rental","190462566","25/05/2018","ICTS","Strategic ICTS (ICT Service Budget)","R4504"
"Wolverhampton City Council","http://opendatacommunities.org/id/metropolitan-district-council/wolverhampton","707840","Telewest Communications/Virgin Media","935695-033","4,681.69","Comms - Telephone Rental","190462565","25/05/2018","ICTS","Strategic ICTS (ICT Service Budget)","R4504"
"Wolverhampton City Council","http://opendatacommunities.org/id/metropolitan-district-council/wolverhampton","707840","Telewest Communications/Virgin Media","935695-029","693.99","Comms - Telephone Rental","190462568","25/05/2018","ICTS","Strategic ICTS (ICT Service Budget)","R4504"
"Wolverhampton City Council","http://opendatacommunities.org/id/metropolitan-district-council/wolverhampton","707840","Telewest Communications/Virgin Media","073979301/001/0118","15.96","Comms - Telephone Rental","190462579","25/05/2018","ICTS","Strategic ICTS (ICT Service Budget)","R4504"
"Wolverhampton City Council","http://opendatacommunities.org/id/metropolitan-district-council/wolverhampton","707840","Telewest Communications/Virgin Media","073979301/001/0617","21.62","Comms - Telephone Rental","190462586","25/05/2018","ICTS","Strategic ICTS (ICT Service Budget)","R4504"
"Wolverhampton City Council","http://opendatacommunities.org/id/metropolitan-district-council/wolverhampton","707840","Telewest Communications/Virgin Media","073979301/001/0717","19.24","Comms - Telephone Rental","190462585","25/05/2018","ICTS","Strategic ICTS (ICT Service Budget)","R4504"
"Wolverhampton City Council","http://opendatacommunities.org/id/metropolitan-district-council/wolverhampton","707840","Telewest Communications/Virgin Media","037795701/501/0418","5.75","Comms - Telephone Call charges","130213571","09/05/2018","Operation & Maintenance of Existing Network","Traffic Signals","R4505"
"Wolverhampton City Council","http://opendatacommunities.org/id/metropolitan-district-council/wolverhampton","707840","Telewest Communications/Virgin Media","073979301/001/0917","13.59","Comms - Telephone Rental","190462583","25/05/2018","ICTS","Strategic ICTS (ICT Service Budget)","R4504"
"Wolverhampton City Council","http://opendatacommunities.org/id/metropolitan-district-council/wolverhampton","707840","Telewest Communications/Virgin Media","033674201/001/0318","22.77","Comms - Telephone Rental","190452568","02/05/2018","ICTS","Strategic ICTS (ICT Service Budget)","R4504"
"Wolverhampton City Council","http://opendatacommunities.org/id/metropolitan-district-council/wolverhampton","707840","Telewest Communications/Virgin Media","035045301/001/1016","6.00","Comms - Telephone Rental","190452572","02/05/2018","ICTS","Strategic ICTS (ICT Service Budget)","R4504"
"Wolverhampton City Council","http://opendatacommunities.org/id/metropolitan-district-council/wolverhampton","707840","Telewest Communications/Virgin Media","039186401/001/0418","23,199.94","Comms - Telephone Rental","190452573","02/05/2018","ICTS","Strategic ICTS (ICT Service Budget)","R4504"
"Wolverhampton City Council","http://opendatacommunities.org/id/metropolitan-district-council/wolverhampton","707840","Telewest Communications/Virgin Media","036800401/017/0518","960.00","Comms - Telephone Rental","190462571","25/05/2018","ICTS","Strategic ICTS (ICT Service Budget)","R4504"
"Wolverhampton City Council","http://opendatacommunities.org/id/metropolitan-district-council/wolverhampton","707840","Telewest Communications/Virgin Media","935697-031","2,196.00","Comms - Telephone Rental","190462574","25/05/2018","ICTS","Strategic ICTS (ICT Service Budget)","R4504"
"Wolverhampton City Council","http://opendatacommunities.org/id/metropolitan-district-council/wolverhampton","707840","Telewest Communications/Virgin Media","073979301/001/1117","19.53","Comms - Telephone Rental","190462581","25/05/2018","ICTS","Strategic ICTS (ICT Service Budget)","R4504"
"Wolverhampton City Council","http://opendatacommunities.org/id/metropolitan-district-council/wolverhampton","707840","Telewest Communications/Virgin Media","073979301/001/1017","19.11","Comms - Telephone Rental","190462582","25/05/2018","ICTS","Strategic ICTS (ICT Service Budget)","R4504"
"Wolverhampton City Council","http://opendatacommunities.org/id/metropolitan-district-council/wolverhampton","707840","Telewest Communications/Virgin Media","073979301/001/0417","26.71","Comms - Telephone Rental","190462588","25/05/2018","ICTS","Strategic ICTS (ICT Service Budget)","R4504"
"Wolverhampton City Council","http://opendatacommunities.org/id/metropolitan-district-council/wolverhampton","707840","Telewest Communications/Virgin Media","726457501/001/0418","250.00","Comms - Telephone Rental","190462590","25/05/2018","ICTS","Strategic ICTS (ICT Service Budget)","R4504"
"Wolverhampton City Council","http://opendatacommunities.org/id/metropolitan-district-council/wolverhampton","707840","Telewest Communications/Virgin Media","935695-031","19,231.95","Comms - Telephone Rental","190462567","25/05/2018","ICTS","Strategic ICTS (ICT Service Budget)","R4504"
"Wolverhampton City Council","http://opendatacommunities.org/id/metropolitan-district-council/wolverhampton","707840","Telewest Communications/Virgin Media","726457601/001/0218","7,344.90","Comms - Telephone Rental","190452576","02/05/2018","ICTS","Strategic ICTS (ICT Service Budget)","R4504"
"Wolverhampton City Council","http://opendatacommunities.org/id/metropolitan-district-council/wolverhampton","707840","Telewest Communications/Virgin Media","035045301/001/0218","5.75","Comms - Telephone Rental","190452571","02/05/2018","ICTS","Strategic ICTS (ICT Service Budget)","R4504"
"Wolverhampton City Council","http://opendatacommunities.org/id/metropolitan-district-council/wolverhampton","707840","Telewest Communications/Virgin Media","726457601/001/0418","6,903.30","Comms - Telephone Rental","190462573","25/05/2018","ICTS","Strategic ICTS (ICT Service Budget)","R4504"
"Wolverhampton City Council","http://opendatacommunities.org/id/metropolitan-district-council/wolverhampton","707840","Telewest Communications/Virgin Media","036800401/017/0418","960.00","Comms - Telephone Rental","190462570","25/05/2018","ICTS","Strategic ICTS (ICT Service Budget)","R4504"
"Wolverhampton City Council","http://opendatacommunities.org/id/metropolitan-district-council/wolverhampton","707840","Telewest Communications/Virgin Media","073979301/001/1217","19.24","Comms - Telephone Rental","190462580","25/05/2018","ICTS","Strategic ICTS (ICT Service Budget)","R4504"
"Wolverhampton City Council","http://opendatacommunities.org/id/metropolitan-district-council/wolverhampton","707840","Telewest Communications/Virgin Media","073979301/001/0418","19.85","Comms - Telephone Rental","190462576","25/05/2018","ICTS","Strategic ICTS (ICT Service Budget)","R4504"
